{"text_format":"1","workbook":"xlsx","n_sheets":6,"sheets":["Vstupné údaje","Výsledky MUŽI","Výsledky ŽENY","Výsledky MUŽI nad 35 rokov","Výsledky DORASTENCI","Výsledky DORASTENKY"],"not_rendered":{"charts":0,"images":0,"macros":1,"external_links":0,"defined_names":0,"comments":0,"pivot_tables":0},"unopened":[],"bounds":{"document_bytes":16777216,"sheet_cells":100000,"rows_first":2000,"rows_last":500,"rows_between":2000,"halvings":0,"cell_chars":16384,"cell_head_chars":4096},"cells_cut":0,"cells_raw":0,"read":"whole","date_system":"1900"}

{"sheet":"Vstupné údaje","index":0,"n_rows":7,"n_cols":2,"rows_kept":7,"cut":false,"hidden":false,"merged":[[0,0,0,1]]}
["Vstupné údaje"]
[]
["Požadovaný údaj","Hodnota"]
["Názov súťaže","Memoriál baróna Friesenhofa"]
["Dátum",{"$f":"TODAY()","v":"2025-06-07"}]
["Začiatok","14:00:00"]
["Kolo v ročníku",1]

{"sheet":"Výsledky MUŽI","index":1,"n_rows":30,"n_cols":13,"rows_kept":30,"cut":false,"hidden":false,"merged":[[0,0,0,7],[1,0,1,7],[0,12,1,12],[21,12,22,12]]}
[{"$f":"'Vstupné údaje'!$B$4","v":"Memoriál baróna Friesenhofa"},null,null,null,null,null,null,null,null,null,null,null,"Návod na plnohodnotnú prácu s výsledkami"]
[{"$f":"CONCATENATE(\"Výsledky \",'Vstupné údaje'!$B$7,\". kola SMHL \",TEXT('Vstupné údaje'!$B$5,\"yyyy\"),\" v kategórii MUŽI, ktoré sa konalo \",TEXT('Vstupné údaje'!$B$5,\"dd.mm.yyyy\"),\" o \",TEXT('Vstupné údaje'!$B$6,\"hh:mm\"))","v":"Výsledky 1. kola SMHL 2025 v kategórii MUŽI, ktoré sa konalo 07.06.2025 o 14:00"}]
[]
["Por.","Družstvo","Okres","ĽP","PP","Výs. čas","Body","Prestup",null,null,null,null,"Pri zadávaní výsledkov sa vypĺňajú nasledujúce stĺpce (zvyšné sa vypočítajú automaticky):"]
[{"$f":"IF(Výsledky_MUŽI[[#This Row],[Výs. čas]]=\"čas\",\"---\",IF(Výsledky_MUŽI[[#This Row],[Výs. čas]]=99.99,\"---\",IF(Výsledky_MUŽI[[#This Row],[Výs. čas]]=\"Diskv.\",\"---\",IF(Výsledky_MUŽI[[#This Row],[Výs. čas]]=\"Neúčasť\",\"---\",_xlfn.RANK.EQ(Výsledky_MUŽI[[#This Row],[Výs. čas]],Výsledky_MUŽI[Výs. čas],1)))))","v":10},"Krásno","PE",15.62,15.71,15.71,{"$f":"IF(Výsledky_MUŽI[[#This Row],[Por.]]=1,20,IF(Výsledky_MUŽI[[#This Row],[Por.]]=2,17,IF(Výsledky_MUŽI[[#This Row],[Por.]]=3,15,IF(Výsledky_MUŽI[[#This Row],[Por.]]=4,13,IF(Výsledky_MUŽI[[#This Row],[Por.]]=5,11,IF(Výsledky_MUŽI[[#This Row],[Por.]]=6,9,IF(Výsledky_MUŽI[[#This Row],[Por.]]=7,8,IF(Výsledky_MUŽI[[#This Row],[Por.]]=8,7,IF(Výsledky_MUŽI[[#This Row],[Por.]]=9,6,IF(Výsledky_MUŽI[[#This Row],[Por.]]=10,5,IF(Výsledky_MUŽI[[#This Row],[Por.]]=11,4,IF(Výsledky_MUŽI[[#This Row],[Por.]]=12,3,IF(Výsledky_MUŽI[[#This Row],[Výs. čas]]=99.99,1,IF(Výsledky_MUŽI[[#This Row],[Výs. čas]]=\"Diskv.\",1,IF(Výsledky_MUŽI[[#This Row],[Výs. čas]]=\"Neúčasť\",0,2)))))))))))))))","v":5},null,null,null,null,null,"--- družstvo"]
[{"$f":"IF(Výsledky_MUŽI[[#This Row],[Výs. čas]]=\"čas\",\"---\",IF(Výsledky_MUŽI[[#This Row],[Výs. čas]]=99.99,\"---\",IF(Výsledky_MUŽI[[#This Row],[Výs. čas]]=\"Diskv.\",\"---\",IF(Výsledky_MUŽI[[#This Row],[Výs. čas]]=\"Neúčasť\",\"---\",_xlfn.RANK.EQ(Výsledky_MUŽI[[#This Row],[Výs. čas]],Výsledky_MUŽI[Výs. čas],1)))))","v":3},"Hoštiná",null,13.91,14.11,14.11,{"$f":"IF(Výsledky_MUŽI[[#This Row],[Por.]]=1,20,IF(Výsledky_MUŽI[[#This Row],[Por.]]=2,17,IF(Výsledky_MUŽI[[#This Row],[Por.]]=3,15,IF(Výsledky_MUŽI[[#This Row],[Por.]]=4,13,IF(Výsledky_MUŽI[[#This Row],[Por.]]=5,11,IF(Výsledky_MUŽI[[#This Row],[Por.]]=6,9,IF(Výsledky_MUŽI[[#This Row],[Por.]]=7,8,IF(Výsledky_MUŽI[[#This Row],[Por.]]=8,7,IF(Výsledky_MUŽI[[#This Row],[Por.]]=9,6,IF(Výsledky_MUŽI[[#This Row],[Por.]]=10,5,IF(Výsledky_MUŽI[[#This Row],[Por.]]=11,4,IF(Výsledky_MUŽI[[#This Row],[Por.]]=12,3,IF(Výsledky_MUŽI[[#This Row],[Výs. čas]]=99.99,1,IF(Výsledky_MUŽI[[#This Row],[Výs. čas]]=\"Diskv.\",1,IF(Výsledky_MUŽI[[#This Row],[Výs. čas]]=\"Neúčasť\",0,2)))))))))))))))","v":15},null,null,null,null,null,"--- okres"]
[{"$f":"IF(Výsledky_MUŽI[[#This Row],[Výs. čas]]=\"čas\",\"---\",IF(Výsledky_MUŽI[[#This Row],[Výs. čas]]=99.99,\"---\",IF(Výsledky_MUŽI[[#This Row],[Výs. čas]]=\"Diskv.\",\"---\",IF(Výsledky_MUŽI[[#This Row],[Výs. čas]]=\"Neúčasť\",\"---\",_xlfn.RANK.EQ(Výsledky_MUŽI[[#This Row],[Výs. čas]],Výsledky_MUŽI[Výs. čas],1)))))","v":5},"Poruba",null,14.23,14.36,14.36,{"$f":"IF(Výsledky_MUŽI[[#This Row],[Por.]]=1,20,IF(Výsledky_MUŽI[[#This Row],[Por.]]=2,17,IF(Výsledky_MUŽI[[#This Row],[Por.]]=3,15,IF(Výsledky_MUŽI[[#This Row],[Por.]]=4,13,IF(Výsledky_MUŽI[[#This Row],[Por.]]=5,11,IF(Výsledky_MUŽI[[#This Row],[Por.]]=6,9,IF(Výsledky_MUŽI[[#This Row],[Por.]]=7,8,IF(Výsledky_MUŽI[[#This Row],[Por.]]=8,7,IF(Výsledky_MUŽI[[#This Row],[Por.]]=9,6,IF(Výsledky_MUŽI[[#This Row],[Por.]]=10,5,IF(Výsledky_MUŽI[[#This Row],[Por.]]=11,4,IF(Výsledky_MUŽI[[#This Row],[Por.]]=12,3,IF(Výsledky_MUŽI[[#This Row],[Výs. čas]]=99.99,1,IF(Výsledky_MUŽI[[#This Row],[Výs. čas]]=\"Diskv.\",1,IF(Výsledky_MUŽI[[#This Row],[Výs. čas]]=\"Neúčasť\",0,2)))))))))))))))","v":11},null,null,null,null,null,"--- ľavý prúd (ĽP)"]
[{"$f":"IF(Výsledky_MUŽI[[#This Row],[Výs. čas]]=\"čas\",\"---\",IF(Výsledky_MUŽI[[#This Row],[Výs. čas]]=99.99,\"---\",IF(Výsledky_MUŽI[[#This Row],[Výs. čas]]=\"Diskv.\",\"---\",IF(Výsledky_MUŽI[[#This Row],[Výs. čas]]=\"Neúčasť\",\"---\",_xlfn.RANK.EQ(Výsledky_MUŽI[[#This Row],[Výs. čas]],Výsledky_MUŽI[Výs. čas],1)))))","v":13},"Lužany",null,17.149999999999999,17.03,17.149999999999999,{"$f":"IF(Výsledky_MUŽI[[#This Row],[Por.]]=1,20,IF(Výsledky_MUŽI[[#This Row],[Por.]]=2,17,IF(Výsledky_MUŽI[[#This Row],[Por.]]=3,15,IF(Výsledky_MUŽI[[#This Row],[Por.]]=4,13,IF(Výsledky_MUŽI[[#This Row],[Por.]]=5,11,IF(Výsledky_MUŽI[[#This Row],[Por.]]=6,9,IF(Výsledky_MUŽI[[#This Row],[Por.]]=7,8,IF(Výsledky_MUŽI[[#This Row],[Por.]]=8,7,IF(Výsledky_MUŽI[[#This Row],[Por.]]=9,6,IF(Výsledky_MUŽI[[#This Row],[Por.]]=10,5,IF(Výsledky_MUŽI[[#This Row],[Por.]]=11,4,IF(Výsledky_MUŽI[[#This Row],[Por.]]=12,3,IF(Výsledky_MUŽI[[#This Row],[Výs. čas]]=99.99,1,IF(Výsledky_MUŽI[[#This Row],[Výs. čas]]=\"Diskv.\",1,IF(Výsledky_MUŽI[[#This Row],[Výs. čas]]=\"Neúčasť\",0,2)))))))))))))))","v":2},"x",null,null,null,null,"--- pravý prúd (PP)"]
[{"$f":"IF(Výsledky_MUŽI[[#This Row],[Výs. čas]]=\"čas\",\"---\",IF(Výsledky_MUŽI[[#This Row],[Výs. čas]]=99.99,\"---\",IF(Výsledky_MUŽI[[#This Row],[Výs. čas]]=\"Diskv.\",\"---\",IF(Výsledky_MUŽI[[#This Row],[Výs. čas]]=\"Neúčasť\",\"---\",_xlfn.RANK.EQ(Výsledky_MUŽI[[#This Row],[Výs. čas]],Výsledky_MUŽI[Výs. čas],1)))))","v":11},"Poľný Kesov",null,16.149999999999999,16.11,16.149999999999999,{"$f":"IF(Výsledky_MUŽI[[#This Row],[Por.]]=1,20,IF(Výsledky_MUŽI[[#This Row],[Por.]]=2,17,IF(Výsledky_MUŽI[[#This Row],[Por.]]=3,15,IF(Výsledky_MUŽI[[#This Row],[Por.]]=4,13,IF(Výsledky_MUŽI[[#This Row],[Por.]]=5,11,IF(Výsledky_MUŽI[[#This Row],[Por.]]=6,9,IF(Výsledky_MUŽI[[#This Row],[Por.]]=7,8,IF(Výsledky_MUŽI[[#This Row],[Por.]]=8,7,IF(Výsledky_MUŽI[[#This Row],[Por.]]=9,6,IF(Výsledky_MUŽI[[#This Row],[Por.]]=10,5,IF(Výsledky_MUŽI[[#This Row],[Por.]]=11,4,IF(Výsledky_MUŽI[[#This Row],[Por.]]=12,3,IF(Výsledky_MUŽI[[#This Row],[Výs. čas]]=99.99,1,IF(Výsledky_MUŽI[[#This Row],[Výs. čas]]=\"Diskv.\",1,IF(Výsledky_MUŽI[[#This Row],[Výs. čas]]=\"Neúčasť\",0,2)))))))))))))))","v":4},null,null,null,null,null,"--- prestup"]
[{"$f":"IF(Výsledky_MUŽI[[#This Row],[Výs. čas]]=\"čas\",\"---\",IF(Výsledky_MUŽI[[#This Row],[Výs. čas]]=99.99,\"---\",IF(Výsledky_MUŽI[[#This Row],[Výs. čas]]=\"Diskv.\",\"---\",IF(Výsledky_MUŽI[[#This Row],[Výs. čas]]=\"Neúčasť\",\"---\",_xlfn.RANK.EQ(Výsledky_MUŽI[[#This Row],[Výs. čas]],Výsledky_MUŽI[Výs. čas],1)))))","v":2},"Ďurďové \"A\"",null,13.4,13.69,13.69,{"$f":"IF(Výsledky_MUŽI[[#This Row],[Por.]]=1,20,IF(Výsledky_MUŽI[[#This Row],[Por.]]=2,17,IF(Výsledky_MUŽI[[#This Row],[Por.]]=3,15,IF(Výsledky_MUŽI[[#This Row],[Por.]]=4,13,IF(Výsledky_MUŽI[[#This Row],[Por.]]=5,11,IF(Výsledky_MUŽI[[#This Row],[Por.]]=6,9,IF(Výsledky_MUŽI[[#This Row],[Por.]]=7,8,IF(Výsledky_MUŽI[[#This Row],[Por.]]=8,7,IF(Výsledky_MUŽI[[#This Row],[Por.]]=9,6,IF(Výsledky_MUŽI[[#This Row],[Por.]]=10,5,IF(Výsledky_MUŽI[[#This Row],[Por.]]=11,4,IF(Výsledky_MUŽI[[#This Row],[Por.]]=12,3,IF(Výsledky_MUŽI[[#This Row],[Výs. čas]]=99.99,1,IF(Výsledky_MUŽI[[#This Row],[Výs. čas]]=\"Diskv.\",1,IF(Výsledky_MUŽI[[#This Row],[Výs. čas]]=\"Neúčasť\",0,2)))))))))))))))","v":17}]
[{"$f":"IF(Výsledky_MUŽI[[#This Row],[Výs. čas]]=\"čas\",\"---\",IF(Výsledky_MUŽI[[#This Row],[Výs. čas]]=99.99,\"---\",IF(Výsledky_MUŽI[[#This Row],[Výs. čas]]=\"Diskv.\",\"---\",IF(Výsledky_MUŽI[[#This Row],[Výs. čas]]=\"Neúčasť\",\"---\",_xlfn.RANK.EQ(Výsledky_MUŽI[[#This Row],[Výs. čas]],Výsledky_MUŽI[Výs. čas],1)))))","v":14},"Lednické Rovne",null,20.100000000000001,20.46,20.46,{"$f":"IF(Výsledky_MUŽI[[#This Row],[Por.]]=1,20,IF(Výsledky_MUŽI[[#This Row],[Por.]]=2,17,IF(Výsledky_MUŽI[[#This Row],[Por.]]=3,15,IF(Výsledky_MUŽI[[#This Row],[Por.]]=4,13,IF(Výsledky_MUŽI[[#This Row],[Por.]]=5,11,IF(Výsledky_MUŽI[[#This Row],[Por.]]=6,9,IF(Výsledky_MUŽI[[#This Row],[Por.]]=7,8,IF(Výsledky_MUŽI[[#This Row],[Por.]]=8,7,IF(Výsledky_MUŽI[[#This Row],[Por.]]=9,6,IF(Výsledky_MUŽI[[#This Row],[Por.]]=10,5,IF(Výsledky_MUŽI[[#This Row],[Por.]]=11,4,IF(Výsledky_MUŽI[[#This Row],[Por.]]=12,3,IF(Výsledky_MUŽI[[#This Row],[Výs. čas]]=99.99,1,IF(Výsledky_MUŽI[[#This Row],[Výs. čas]]=\"Diskv.\",1,IF(Výsledky_MUŽI[[#This Row],[Výs. čas]]=\"Neúčasť\",0,2)))))))))))))))","v":2},"x",null,null,null,null,"Dovolený formát zadávaných údajov:"]
[{"$f":"IF(Výsledky_MUŽI[[#This Row],[Výs. čas]]=\"čas\",\"---\",IF(Výsledky_MUŽI[[#This Row],[Výs. čas]]=99.99,\"---\",IF(Výsledky_MUŽI[[#This Row],[Výs. čas]]=\"Diskv.\",\"---\",IF(Výsledky_MUŽI[[#This Row],[Výs. čas]]=\"Neúčasť\",\"---\",_xlfn.RANK.EQ(Výsledky_MUŽI[[#This Row],[Výs. čas]],Výsledky_MUŽI[Výs. čas],1)))))","v":17},"Ďurďové \"B\"",null,33.159999999999997,33.299999999999997,33.299999999999997,{"$f":"IF(Výsledky_MUŽI[[#This Row],[Por.]]=1,20,IF(Výsledky_MUŽI[[#This Row],[Por.]]=2,17,IF(Výsledky_MUŽI[[#This Row],[Por.]]=3,15,IF(Výsledky_MUŽI[[#This Row],[Por.]]=4,13,IF(Výsledky_MUŽI[[#This Row],[Por.]]=5,11,IF(Výsledky_MUŽI[[#This Row],[Por.]]=6,9,IF(Výsledky_MUŽI[[#This Row],[Por.]]=7,8,IF(Výsledky_MUŽI[[#This Row],[Por.]]=8,7,IF(Výsledky_MUŽI[[#This Row],[Por.]]=9,6,IF(Výsledky_MUŽI[[#This Row],[Por.]]=10,5,IF(Výsledky_MUŽI[[#This Row],[Por.]]=11,4,IF(Výsledky_MUŽI[[#This Row],[Por.]]=12,3,IF(Výsledky_MUŽI[[#This Row],[Výs. čas]]=99.99,1,IF(Výsledky_MUŽI[[#This Row],[Výs. čas]]=\"Diskv.\",1,IF(Výsledky_MUŽI[[#This Row],[Výs. čas]]=\"Neúčasť\",0,2)))))))))))))))","v":2},null,null,null,null,null,"Družstvo, okres"]
[{"$f":"IF(Výsledky_MUŽI[[#This Row],[Výs. čas]]=\"čas\",\"---\",IF(Výsledky_MUŽI[[#This Row],[Výs. čas]]=99.99,\"---\",IF(Výsledky_MUŽI[[#This Row],[Výs. čas]]=\"Diskv.\",\"---\",IF(Výsledky_MUŽI[[#This Row],[Výs. čas]]=\"Neúčasť\",\"---\",_xlfn.RANK.EQ(Výsledky_MUŽI[[#This Row],[Výs. čas]],Výsledky_MUŽI[Výs. čas],1)))))","v":1},"Zbora",null,13.45,13.58,13.58,{"$f":"IF(Výsledky_MUŽI[[#This Row],[Por.]]=1,20,IF(Výsledky_MUŽI[[#This Row],[Por.]]=2,17,IF(Výsledky_MUŽI[[#This Row],[Por.]]=3,15,IF(Výsledky_MUŽI[[#This Row],[Por.]]=4,13,IF(Výsledky_MUŽI[[#This Row],[Por.]]=5,11,IF(Výsledky_MUŽI[[#This Row],[Por.]]=6,9,IF(Výsledky_MUŽI[[#This Row],[Por.]]=7,8,IF(Výsledky_MUŽI[[#This Row],[Por.]]=8,7,IF(Výsledky_MUŽI[[#This Row],[Por.]]=9,6,IF(Výsledky_MUŽI[[#This Row],[Por.]]=10,5,IF(Výsledky_MUŽI[[#This Row],[Por.]]=11,4,IF(Výsledky_MUŽI[[#This Row],[Por.]]=12,3,IF(Výsledky_MUŽI[[#This Row],[Výs. čas]]=99.99,1,IF(Výsledky_MUŽI[[#This Row],[Výs. čas]]=\"Diskv.\",1,IF(Výsledky_MUŽI[[#This Row],[Výs. čas]]=\"Neúčasť\",0,2)))))))))))))))","v":20},null,null,null,null,null,"--- ľubovoľný text"]
[{"$f":"IF(Výsledky_MUŽI[[#This Row],[Výs. čas]]=\"čas\",\"---\",IF(Výsledky_MUŽI[[#This Row],[Výs. čas]]=99.99,\"---\",IF(Výsledky_MUŽI[[#This Row],[Výs. čas]]=\"Diskv.\",\"---\",IF(Výsledky_MUŽI[[#This Row],[Výs. čas]]=\"Neúčasť\",\"---\",_xlfn.RANK.EQ(Výsledky_MUŽI[[#This Row],[Výs. čas]],Výsledky_MUŽI[Výs. čas],1)))))","v":4},"Lednica",null,14.18,14.35,14.35,{"$f":"IF(Výsledky_MUŽI[[#This Row],[Por.]]=1,20,IF(Výsledky_MUŽI[[#This Row],[Por.]]=2,17,IF(Výsledky_MUŽI[[#This Row],[Por.]]=3,15,IF(Výsledky_MUŽI[[#This Row],[Por.]]=4,13,IF(Výsledky_MUŽI[[#This Row],[Por.]]=5,11,IF(Výsledky_MUŽI[[#This Row],[Por.]]=6,9,IF(Výsledky_MUŽI[[#This Row],[Por.]]=7,8,IF(Výsledky_MUŽI[[#This Row],[Por.]]=8,7,IF(Výsledky_MUŽI[[#This Row],[Por.]]=9,6,IF(Výsledky_MUŽI[[#This Row],[Por.]]=10,5,IF(Výsledky_MUŽI[[#This Row],[Por.]]=11,4,IF(Výsledky_MUŽI[[#This Row],[Por.]]=12,3,IF(Výsledky_MUŽI[[#This Row],[Výs. čas]]=99.99,1,IF(Výsledky_MUŽI[[#This Row],[Výs. čas]]=\"Diskv.\",1,IF(Výsledky_MUŽI[[#This Row],[Výs. čas]]=\"Neúčasť\",0,2)))))))))))))))","v":13},null,null,null,null,null,"Ľavý/pravý prúd"]
[{"$f":"IF(Výsledky_MUŽI[[#This Row],[Výs. čas]]=\"čas\",\"---\",IF(Výsledky_MUŽI[[#This Row],[Výs. čas]]=99.99,\"---\",IF(Výsledky_MUŽI[[#This Row],[Výs. čas]]=\"Diskv.\",\"---\",IF(Výsledky_MUŽI[[#This Row],[Výs. čas]]=\"Neúčasť\",\"---\",_xlfn.RANK.EQ(Výsledky_MUŽI[[#This Row],[Výs. čas]],Výsledky_MUŽI[Výs. čas],1)))))","v":{"$error":"#VALUE!"}},"Podlužany",null,null,null,"NÚ",{"$f":"IF(Výsledky_MUŽI[[#This Row],[Por.]]=1,20,IF(Výsledky_MUŽI[[#This Row],[Por.]]=2,17,IF(Výsledky_MUŽI[[#This Row],[Por.]]=3,15,IF(Výsledky_MUŽI[[#This Row],[Por.]]=4,13,IF(Výsledky_MUŽI[[#This Row],[Por.]]=5,11,IF(Výsledky_MUŽI[[#This Row],[Por.]]=6,9,IF(Výsledky_MUŽI[[#This Row],[Por.]]=7,8,IF(Výsledky_MUŽI[[#This Row],[Por.]]=8,7,IF(Výsledky_MUŽI[[#This Row],[Por.]]=9,6,IF(Výsledky_MUŽI[[#This Row],[Por.]]=10,5,IF(Výsledky_MUŽI[[#This Row],[Por.]]=11,4,IF(Výsledky_MUŽI[[#This Row],[Por.]]=12,3,IF(Výsledky_MUŽI[[#This Row],[Výs. čas]]=99.99,1,IF(Výsledky_MUŽI[[#This Row],[Výs. čas]]=\"Diskv.\",1,IF(Výsledky_MUŽI[[#This Row],[Výs. čas]]=\"Neúčasť\",0,2)))))))))))))))","v":{"$error":"#VALUE!"}},null,null,null,null,null,"14.00 --- dokončený pokus"]
[{"$f":"IF(Výsledky_MUŽI[[#This Row],[Výs. čas]]=\"čas\",\"---\",IF(Výsledky_MUŽI[[#This Row],[Výs. čas]]=99.99,\"---\",IF(Výsledky_MUŽI[[#This Row],[Výs. čas]]=\"Diskv.\",\"---\",IF(Výsledky_MUŽI[[#This Row],[Výs. čas]]=\"Neúčasť\",\"---\",_xlfn.RANK.EQ(Výsledky_MUŽI[[#This Row],[Výs. čas]],Výsledky_MUŽI[Výs. čas],1)))))","v":15},"Kanianka",null,20.82,20.239999999999998,20.82,{"$f":"IF(Výsledky_MUŽI[[#This Row],[Por.]]=1,20,IF(Výsledky_MUŽI[[#This Row],[Por.]]=2,17,IF(Výsledky_MUŽI[[#This Row],[Por.]]=3,15,IF(Výsledky_MUŽI[[#This Row],[Por.]]=4,13,IF(Výsledky_MUŽI[[#This Row],[Por.]]=5,11,IF(Výsledky_MUŽI[[#This Row],[Por.]]=6,9,IF(Výsledky_MUŽI[[#This Row],[Por.]]=7,8,IF(Výsledky_MUŽI[[#This Row],[Por.]]=8,7,IF(Výsledky_MUŽI[[#This Row],[Por.]]=9,6,IF(Výsledky_MUŽI[[#This Row],[Por.]]=10,5,IF(Výsledky_MUŽI[[#This Row],[Por.]]=11,4,IF(Výsledky_MUŽI[[#This Row],[Por.]]=12,3,IF(Výsledky_MUŽI[[#This Row],[Výs. čas]]=99.99,1,IF(Výsledky_MUŽI[[#This Row],[Výs. čas]]=\"Diskv.\",1,IF(Výsledky_MUŽI[[#This Row],[Výs. čas]]=\"Neúčasť\",0,2)))))))))))))))","v":2},null,null,null,null,null,"99.99 --- nedokončený pokus"]
[{"$f":"IF(Výsledky_MUŽI[[#This Row],[Výs. čas]]=\"čas\",\"---\",IF(Výsledky_MUŽI[[#This Row],[Výs. čas]]=99.99,\"---\",IF(Výsledky_MUŽI[[#This Row],[Výs. čas]]=\"Diskv.\",\"---\",IF(Výsledky_MUŽI[[#This Row],[Výs. čas]]=\"Neúčasť\",\"---\",_xlfn.RANK.EQ(Výsledky_MUŽI[[#This Row],[Výs. čas]],Výsledky_MUŽI[Výs. čas],1)))))","v":{"$error":"#VALUE!"}},"Hrabové",null,null,null,"NÚ",{"$f":"IF(Výsledky_MUŽI[[#This Row],[Por.]]=1,20,IF(Výsledky_MUŽI[[#This Row],[Por.]]=2,17,IF(Výsledky_MUŽI[[#This Row],[Por.]]=3,15,IF(Výsledky_MUŽI[[#This Row],[Por.]]=4,13,IF(Výsledky_MUŽI[[#This Row],[Por.]]=5,11,IF(Výsledky_MUŽI[[#This Row],[Por.]]=6,9,IF(Výsledky_MUŽI[[#This Row],[Por.]]=7,8,IF(Výsledky_MUŽI[[#This Row],[Por.]]=8,7,IF(Výsledky_MUŽI[[#This Row],[Por.]]=9,6,IF(Výsledky_MUŽI[[#This Row],[Por.]]=10,5,IF(Výsledky_MUŽI[[#This Row],[Por.]]=11,4,IF(Výsledky_MUŽI[[#This Row],[Por.]]=12,3,IF(Výsledky_MUŽI[[#This Row],[Výs. čas]]=99.99,1,IF(Výsledky_MUŽI[[#This Row],[Výs. čas]]=\"Diskv.\",1,IF(Výsledky_MUŽI[[#This Row],[Výs. čas]]=\"Neúčasť\",0,2)))))))))))))))","v":{"$error":"#VALUE!"}},"x",null,null,null,null,"D        --- diskvalifikácia družstva"]
[{"$f":"IF(Výsledky_MUŽI[[#This Row],[Výs. čas]]=\"čas\",\"---\",IF(Výsledky_MUŽI[[#This Row],[Výs. čas]]=99.99,\"---\",IF(Výsledky_MUŽI[[#This Row],[Výs. čas]]=\"Diskv.\",\"---\",IF(Výsledky_MUŽI[[#This Row],[Výs. čas]]=\"Neúčasť\",\"---\",_xlfn.RANK.EQ(Výsledky_MUŽI[[#This Row],[Výs. čas]],Výsledky_MUŽI[Výs. čas],1)))))","v":{"$error":"#VALUE!"}},"Topoľčianky",null,null,null,"D",{"$f":"IF(Výsledky_MUŽI[[#This Row],[Por.]]=1,20,IF(Výsledky_MUŽI[[#This Row],[Por.]]=2,17,IF(Výsledky_MUŽI[[#This Row],[Por.]]=3,15,IF(Výsledky_MUŽI[[#This Row],[Por.]]=4,13,IF(Výsledky_MUŽI[[#This Row],[Por.]]=5,11,IF(Výsledky_MUŽI[[#This Row],[Por.]]=6,9,IF(Výsledky_MUŽI[[#This Row],[Por.]]=7,8,IF(Výsledky_MUŽI[[#This Row],[Por.]]=8,7,IF(Výsledky_MUŽI[[#This Row],[Por.]]=9,6,IF(Výsledky_MUŽI[[#This Row],[Por.]]=10,5,IF(Výsledky_MUŽI[[#This Row],[Por.]]=11,4,IF(Výsledky_MUŽI[[#This Row],[Por.]]=12,3,IF(Výsledky_MUŽI[[#This Row],[Výs. čas]]=99.99,1,IF(Výsledky_MUŽI[[#This Row],[Výs. čas]]=\"Diskv.\",1,IF(Výsledky_MUŽI[[#This Row],[Výs. čas]]=\"Neúčasť\",0,2)))))))))))))))","v":{"$error":"#VALUE!"}},"x",null,null,null,null,"N        --- neúčasť družstva"]
[{"$f":"IF(Výsledky_MUŽI[[#This Row],[Výs. čas]]=\"čas\",\"---\",IF(Výsledky_MUŽI[[#This Row],[Výs. čas]]=99.99,\"---\",IF(Výsledky_MUŽI[[#This Row],[Výs. čas]]=\"Diskv.\",\"---\",IF(Výsledky_MUŽI[[#This Row],[Výs. čas]]=\"Neúčasť\",\"---\",_xlfn.RANK.EQ(Výsledky_MUŽI[[#This Row],[Výs. čas]],Výsledky_MUŽI[Výs. čas],1)))))","v":12},"Rybany",null,16.87,16.59,16.87,{"$f":"IF(Výsledky_MUŽI[[#This Row],[Por.]]=1,20,IF(Výsledky_MUŽI[[#This Row],[Por.]]=2,17,IF(Výsledky_MUŽI[[#This Row],[Por.]]=3,15,IF(Výsledky_MUŽI[[#This Row],[Por.]]=4,13,IF(Výsledky_MUŽI[[#This Row],[Por.]]=5,11,IF(Výsledky_MUŽI[[#This Row],[Por.]]=6,9,IF(Výsledky_MUŽI[[#This Row],[Por.]]=7,8,IF(Výsledky_MUŽI[[#This Row],[Por.]]=8,7,IF(Výsledky_MUŽI[[#This Row],[Por.]]=9,6,IF(Výsledky_MUŽI[[#This Row],[Por.]]=10,5,IF(Výsledky_MUŽI[[#This Row],[Por.]]=11,4,IF(Výsledky_MUŽI[[#This Row],[Por.]]=12,3,IF(Výsledky_MUŽI[[#This Row],[Výs. čas]]=99.99,1,IF(Výsledky_MUŽI[[#This Row],[Výs. čas]]=\"Diskv.\",1,IF(Výsledky_MUŽI[[#This Row],[Výs. čas]]=\"Neúčasť\",0,2)))))))))))))))","v":3},"x",null,null,null,null,"Prestup"]
[{"$f":"IF(Výsledky_MUŽI[[#This Row],[Výs. čas]]=\"čas\",\"---\",IF(Výsledky_MUŽI[[#This Row],[Výs. čas]]=99.99,\"---\",IF(Výsledky_MUŽI[[#This Row],[Výs. čas]]=\"Diskv.\",\"---\",IF(Výsledky_MUŽI[[#This Row],[Výs. čas]]=\"Neúčasť\",\"---\",_xlfn.RANK.EQ(Výsledky_MUŽI[[#This Row],[Výs. čas]],Výsledky_MUŽI[Výs. čas],1)))))","v":9},"Visolaje",null,15.43,14.92,15.43,{"$f":"IF(Výsledky_MUŽI[[#This Row],[Por.]]=1,20,IF(Výsledky_MUŽI[[#This Row],[Por.]]=2,17,IF(Výsledky_MUŽI[[#This Row],[Por.]]=3,15,IF(Výsledky_MUŽI[[#This Row],[Por.]]=4,13,IF(Výsledky_MUŽI[[#This Row],[Por.]]=5,11,IF(Výsledky_MUŽI[[#This Row],[Por.]]=6,9,IF(Výsledky_MUŽI[[#This Row],[Por.]]=7,8,IF(Výsledky_MUŽI[[#This Row],[Por.]]=8,7,IF(Výsledky_MUŽI[[#This Row],[Por.]]=9,6,IF(Výsledky_MUŽI[[#This Row],[Por.]]=10,5,IF(Výsledky_MUŽI[[#This Row],[Por.]]=11,4,IF(Výsledky_MUŽI[[#This Row],[Por.]]=12,3,IF(Výsledky_MUŽI[[#This Row],[Výs. čas]]=99.99,1,IF(Výsledky_MUŽI[[#This Row],[Výs. čas]]=\"Diskv.\",1,IF(Výsledky_MUŽI[[#This Row],[Výs. čas]]=\"Neúčasť\",0,2)))))))))))))))","v":6},null,null,null,null,null,"X        --- ak malo družstvo prestup"]
[{"$f":"IF(Výsledky_MUŽI[[#This Row],[Výs. čas]]=\"čas\",\"---\",IF(Výsledky_MUŽI[[#This Row],[Výs. čas]]=99.99,\"---\",IF(Výsledky_MUŽI[[#This Row],[Výs. čas]]=\"Diskv.\",\"---\",IF(Výsledky_MUŽI[[#This Row],[Výs. čas]]=\"Neúčasť\",\"---\",_xlfn.RANK.EQ(Výsledky_MUŽI[[#This Row],[Výs. čas]],Výsledky_MUŽI[Výs. čas],1)))))","v":8},"Svinná",null,14.02,15.28,15.28,{"$f":"IF(Výsledky_MUŽI[[#This Row],[Por.]]=1,20,IF(Výsledky_MUŽI[[#This Row],[Por.]]=2,17,IF(Výsledky_MUŽI[[#This Row],[Por.]]=3,15,IF(Výsledky_MUŽI[[#This Row],[Por.]]=4,13,IF(Výsledky_MUŽI[[#This Row],[Por.]]=5,11,IF(Výsledky_MUŽI[[#This Row],[Por.]]=6,9,IF(Výsledky_MUŽI[[#This Row],[Por.]]=7,8,IF(Výsledky_MUŽI[[#This Row],[Por.]]=8,7,IF(Výsledky_MUŽI[[#This Row],[Por.]]=9,6,IF(Výsledky_MUŽI[[#This Row],[Por.]]=10,5,IF(Výsledky_MUŽI[[#This Row],[Por.]]=11,4,IF(Výsledky_MUŽI[[#This Row],[Por.]]=12,3,IF(Výsledky_MUŽI[[#This Row],[Výs. čas]]=99.99,1,IF(Výsledky_MUŽI[[#This Row],[Výs. čas]]=\"Diskv.\",1,IF(Výsledky_MUŽI[[#This Row],[Výs. čas]]=\"Neúčasť\",0,2)))))))))))))))","v":7}]
[{"$f":"IF(Výsledky_MUŽI[[#This Row],[Výs. čas]]=\"čas\",\"---\",IF(Výsledky_MUŽI[[#This Row],[Výs. čas]]=99.99,\"---\",IF(Výsledky_MUŽI[[#This Row],[Výs. čas]]=\"Diskv.\",\"---\",IF(Výsledky_MUŽI[[#This Row],[Výs. čas]]=\"Neúčasť\",\"---\",_xlfn.RANK.EQ(Výsledky_MUŽI[[#This Row],[Výs. čas]],Výsledky_MUŽI[Výs. čas],1)))))","v":16},"Nová Dedina",null,22.11,20.059999999999999,22.11,{"$f":"IF(Výsledky_MUŽI[[#This Row],[Por.]]=1,20,IF(Výsledky_MUŽI[[#This Row],[Por.]]=2,17,IF(Výsledky_MUŽI[[#This Row],[Por.]]=3,15,IF(Výsledky_MUŽI[[#This Row],[Por.]]=4,13,IF(Výsledky_MUŽI[[#This Row],[Por.]]=5,11,IF(Výsledky_MUŽI[[#This Row],[Por.]]=6,9,IF(Výsledky_MUŽI[[#This Row],[Por.]]=7,8,IF(Výsledky_MUŽI[[#This Row],[Por.]]=8,7,IF(Výsledky_MUŽI[[#This Row],[Por.]]=9,6,IF(Výsledky_MUŽI[[#This Row],[Por.]]=10,5,IF(Výsledky_MUŽI[[#This Row],[Por.]]=11,4,IF(Výsledky_MUŽI[[#This Row],[Por.]]=12,3,IF(Výsledky_MUŽI[[#This Row],[Výs. čas]]=99.99,1,IF(Výsledky_MUŽI[[#This Row],[Výs. čas]]=\"Diskv.\",1,IF(Výsledky_MUŽI[[#This Row],[Výs. čas]]=\"Neúčasť\",0,2)))))))))))))))","v":2},null,null,null,null,null,"TIP: Ak potrebujete do tabuľky pridať nový riadok, presuňte sa do stĺpca \"H\" posledného riadku a stačte klávesu TAB."]
[{"$f":"IF(Výsledky_MUŽI[[#This Row],[Výs. čas]]=\"čas\",\"---\",IF(Výsledky_MUŽI[[#This Row],[Výs. čas]]=99.99,\"---\",IF(Výsledky_MUŽI[[#This Row],[Výs. čas]]=\"Diskv.\",\"---\",IF(Výsledky_MUŽI[[#This Row],[Výs. čas]]=\"Neúčasť\",\"---\",_xlfn.RANK.EQ(Výsledky_MUŽI[[#This Row],[Výs. čas]],Výsledky_MUŽI[Výs. čas],1)))))","v":7},"Nedašov",null,14.82,14.8,14.82,{"$f":"IF(Výsledky_MUŽI[[#This Row],[Por.]]=1,20,IF(Výsledky_MUŽI[[#This Row],[Por.]]=2,17,IF(Výsledky_MUŽI[[#This Row],[Por.]]=3,15,IF(Výsledky_MUŽI[[#This Row],[Por.]]=4,13,IF(Výsledky_MUŽI[[#This Row],[Por.]]=5,11,IF(Výsledky_MUŽI[[#This Row],[Por.]]=6,9,IF(Výsledky_MUŽI[[#This Row],[Por.]]=7,8,IF(Výsledky_MUŽI[[#This Row],[Por.]]=8,7,IF(Výsledky_MUŽI[[#This Row],[Por.]]=9,6,IF(Výsledky_MUŽI[[#This Row],[Por.]]=10,5,IF(Výsledky_MUŽI[[#This Row],[Por.]]=11,4,IF(Výsledky_MUŽI[[#This Row],[Por.]]=12,3,IF(Výsledky_MUŽI[[#This Row],[Výs. čas]]=99.99,1,IF(Výsledky_MUŽI[[#This Row],[Výs. čas]]=\"Diskv.\",1,IF(Výsledky_MUŽI[[#This Row],[Výs. čas]]=\"Neúčasť\",0,2)))))))))))))))","v":8},"x"]
[{"$f":"IF(Výsledky_MUŽI[[#This Row],[Výs. čas]]=\"čas\",\"---\",IF(Výsledky_MUŽI[[#This Row],[Výs. čas]]=99.99,\"---\",IF(Výsledky_MUŽI[[#This Row],[Výs. čas]]=\"Diskv.\",\"---\",IF(Výsledky_MUŽI[[#This Row],[Výs. čas]]=\"Neúčasť\",\"---\",_xlfn.RANK.EQ(Výsledky_MUŽI[[#This Row],[Výs. čas]],Výsledky_MUŽI[Výs. čas],1)))))","v":6},"Dohňany",null,14.52,14.23,14.52,{"$f":"IF(Výsledky_MUŽI[[#This Row],[Por.]]=1,20,IF(Výsledky_MUŽI[[#This Row],[Por.]]=2,17,IF(Výsledky_MUŽI[[#This Row],[Por.]]=3,15,IF(Výsledky_MUŽI[[#This Row],[Por.]]=4,13,IF(Výsledky_MUŽI[[#This Row],[Por.]]=5,11,IF(Výsledky_MUŽI[[#This Row],[Por.]]=6,9,IF(Výsledky_MUŽI[[#This Row],[Por.]]=7,8,IF(Výsledky_MUŽI[[#This Row],[Por.]]=8,7,IF(Výsledky_MUŽI[[#This Row],[Por.]]=9,6,IF(Výsledky_MUŽI[[#This Row],[Por.]]=10,5,IF(Výsledky_MUŽI[[#This Row],[Por.]]=11,4,IF(Výsledky_MUŽI[[#This Row],[Por.]]=12,3,IF(Výsledky_MUŽI[[#This Row],[Výs. čas]]=99.99,1,IF(Výsledky_MUŽI[[#This Row],[Výs. čas]]=\"Diskv.\",1,IF(Výsledky_MUŽI[[#This Row],[Výs. čas]]=\"Neúčasť\",0,2)))))))))))))))","v":9},"x"]
[{"$f":"IF(Výsledky_MUŽI[[#This Row],[Výs. čas]]=\"čas\",\"---\",IF(Výsledky_MUŽI[[#This Row],[Výs. čas]]=99.99,\"---\",IF(Výsledky_MUŽI[[#This Row],[Výs. čas]]=\"Diskv.\",\"---\",IF(Výsledky_MUŽI[[#This Row],[Výs. čas]]=\"Neúčasť\",\"---\",_xlfn.RANK.EQ(Výsledky_MUŽI[[#This Row],[Výs. čas]],Výsledky_MUŽI[Výs. čas],1)))))","v":"---"},null,null,null,null,{"$f":"IF(AND(ISBLANK(Výsledky_MUŽI[[#This Row],[PP]])),\"čas\",IF(Výsledky_MUŽI[[#This Row],[ĽP]]=\"D\",\"Diskv.\",IF(Výsledky_MUŽI[[#This Row],[PP]]=\"D\",\"Diskv.\",IF(Výsledky_MUŽI[[#This Row],[ĽP]]=\"n\",\"Neúčasť\",IF(Výsledky_MUŽI[[#This Row],[PP]]=\"n\",\"Neúčasť\",MAX(SUBSTITUTE(Výsledky_MUŽI[[#This Row],[ĽP]],\",\",\".\"),SUBSTITUTE(Výsledky_MUŽI[[#This Row],[PP]],\",\",\".\")))))))","v":"čas"},{"$f":"IF(Výsledky_MUŽI[[#This Row],[Por.]]=1,20,IF(Výsledky_MUŽI[[#This Row],[Por.]]=2,17,IF(Výsledky_MUŽI[[#This Row],[Por.]]=3,15,IF(Výsledky_MUŽI[[#This Row],[Por.]]=4,13,IF(Výsledky_MUŽI[[#This Row],[Por.]]=5,11,IF(Výsledky_MUŽI[[#This Row],[Por.]]=6,9,IF(Výsledky_MUŽI[[#This Row],[Por.]]=7,8,IF(Výsledky_MUŽI[[#This Row],[Por.]]=8,7,IF(Výsledky_MUŽI[[#This Row],[Por.]]=9,6,IF(Výsledky_MUŽI[[#This Row],[Por.]]=10,5,IF(Výsledky_MUŽI[[#This Row],[Por.]]=11,4,IF(Výsledky_MUŽI[[#This Row],[Por.]]=12,3,IF(Výsledky_MUŽI[[#This Row],[Výs. čas]]=99.99,1,IF(Výsledky_MUŽI[[#This Row],[Výs. čas]]=\"Diskv.\",1,IF(Výsledky_MUŽI[[#This Row],[Výs. čas]]=\"Neúčasť\",0,2)))))))))))))))","v":2}]
[{"$f":"IF(Výsledky_MUŽI[[#This Row],[Výs. čas]]=\"čas\",\"---\",IF(Výsledky_MUŽI[[#This Row],[Výs. čas]]=99.99,\"---\",IF(Výsledky_MUŽI[[#This Row],[Výs. čas]]=\"Diskv.\",\"---\",IF(Výsledky_MUŽI[[#This Row],[Výs. čas]]=\"Neúčasť\",\"---\",_xlfn.RANK.EQ(Výsledky_MUŽI[[#This Row],[Výs. čas]],Výsledky_MUŽI[Výs. čas],1)))))","v":"---"},null,null,null,null,{"$f":"IF(AND(ISBLANK(Výsledky_MUŽI[[#This Row],[PP]])),\"čas\",IF(Výsledky_MUŽI[[#This Row],[ĽP]]=\"D\",\"Diskv.\",IF(Výsledky_MUŽI[[#This Row],[PP]]=\"D\",\"Diskv.\",IF(Výsledky_MUŽI[[#This Row],[ĽP]]=\"n\",\"Neúčasť\",IF(Výsledky_MUŽI[[#This Row],[PP]]=\"n\",\"Neúčasť\",MAX(SUBSTITUTE(Výsledky_MUŽI[[#This Row],[ĽP]],\",\",\".\"),SUBSTITUTE(Výsledky_MUŽI[[#This Row],[PP]],\",\",\".\")))))))","v":"čas"},{"$f":"IF(Výsledky_MUŽI[[#This Row],[Por.]]=1,20,IF(Výsledky_MUŽI[[#This Row],[Por.]]=2,17,IF(Výsledky_MUŽI[[#This Row],[Por.]]=3,15,IF(Výsledky_MUŽI[[#This Row],[Por.]]=4,13,IF(Výsledky_MUŽI[[#This Row],[Por.]]=5,11,IF(Výsledky_MUŽI[[#This Row],[Por.]]=6,9,IF(Výsledky_MUŽI[[#This Row],[Por.]]=7,8,IF(Výsledky_MUŽI[[#This Row],[Por.]]=8,7,IF(Výsledky_MUŽI[[#This Row],[Por.]]=9,6,IF(Výsledky_MUŽI[[#This Row],[Por.]]=10,5,IF(Výsledky_MUŽI[[#This Row],[Por.]]=11,4,IF(Výsledky_MUŽI[[#This Row],[Por.]]=12,3,IF(Výsledky_MUŽI[[#This Row],[Výs. čas]]=99.99,1,IF(Výsledky_MUŽI[[#This Row],[Výs. čas]]=\"Diskv.\",1,IF(Výsledky_MUŽI[[#This Row],[Výs. čas]]=\"Neúčasť\",0,2)))))))))))))))","v":2}]
[{"$f":"IF(Výsledky_MUŽI[[#This Row],[Výs. čas]]=\"čas\",\"---\",IF(Výsledky_MUŽI[[#This Row],[Výs. čas]]=99.99,\"---\",IF(Výsledky_MUŽI[[#This Row],[Výs. čas]]=\"Diskv.\",\"---\",IF(Výsledky_MUŽI[[#This Row],[Výs. čas]]=\"Neúčasť\",\"---\",_xlfn.RANK.EQ(Výsledky_MUŽI[[#This Row],[Výs. čas]],Výsledky_MUŽI[Výs. čas],1)))))","v":"---"},null,null,null,null,{"$f":"IF(AND(ISBLANK(Výsledky_MUŽI[[#This Row],[PP]])),\"čas\",IF(Výsledky_MUŽI[[#This Row],[ĽP]]=\"D\",\"Diskv.\",IF(Výsledky_MUŽI[[#This Row],[PP]]=\"D\",\"Diskv.\",IF(Výsledky_MUŽI[[#This Row],[ĽP]]=\"n\",\"Neúčasť\",IF(Výsledky_MUŽI[[#This Row],[PP]]=\"n\",\"Neúčasť\",MAX(SUBSTITUTE(Výsledky_MUŽI[[#This Row],[ĽP]],\",\",\".\"),SUBSTITUTE(Výsledky_MUŽI[[#This Row],[PP]],\",\",\".\")))))))","v":"čas"},{"$f":"IF(Výsledky_MUŽI[[#This Row],[Por.]]=1,20,IF(Výsledky_MUŽI[[#This Row],[Por.]]=2,17,IF(Výsledky_MUŽI[[#This Row],[Por.]]=3,15,IF(Výsledky_MUŽI[[#This Row],[Por.]]=4,13,IF(Výsledky_MUŽI[[#This Row],[Por.]]=5,11,IF(Výsledky_MUŽI[[#This Row],[Por.]]=6,9,IF(Výsledky_MUŽI[[#This Row],[Por.]]=7,8,IF(Výsledky_MUŽI[[#This Row],[Por.]]=8,7,IF(Výsledky_MUŽI[[#This Row],[Por.]]=9,6,IF(Výsledky_MUŽI[[#This Row],[Por.]]=10,5,IF(Výsledky_MUŽI[[#This Row],[Por.]]=11,4,IF(Výsledky_MUŽI[[#This Row],[Por.]]=12,3,IF(Výsledky_MUŽI[[#This Row],[Výs. čas]]=99.99,1,IF(Výsledky_MUŽI[[#This Row],[Výs. čas]]=\"Diskv.\",1,IF(Výsledky_MUŽI[[#This Row],[Výs. čas]]=\"Neúčasť\",0,2)))))))))))))))","v":2}]
[{"$f":"IF(Výsledky_MUŽI[[#This Row],[Výs. čas]]=\"čas\",\"---\",IF(Výsledky_MUŽI[[#This Row],[Výs. čas]]=99.99,\"---\",IF(Výsledky_MUŽI[[#This Row],[Výs. čas]]=\"Diskv.\",\"---\",IF(Výsledky_MUŽI[[#This Row],[Výs. čas]]=\"Neúčasť\",\"---\",_xlfn.RANK.EQ(Výsledky_MUŽI[[#This Row],[Výs. čas]],Výsledky_MUŽI[Výs. čas],1)))))","v":"---"},null,null,null,null,{"$f":"IF(AND(ISBLANK(Výsledky_MUŽI[[#This Row],[PP]])),\"čas\",IF(Výsledky_MUŽI[[#This Row],[ĽP]]=\"D\",\"Diskv.\",IF(Výsledky_MUŽI[[#This Row],[PP]]=\"D\",\"Diskv.\",IF(Výsledky_MUŽI[[#This Row],[ĽP]]=\"n\",\"Neúčasť\",IF(Výsledky_MUŽI[[#This Row],[PP]]=\"n\",\"Neúčasť\",MAX(SUBSTITUTE(Výsledky_MUŽI[[#This Row],[ĽP]],\",\",\".\"),SUBSTITUTE(Výsledky_MUŽI[[#This Row],[PP]],\",\",\".\")))))))","v":"čas"},{"$f":"IF(Výsledky_MUŽI[[#This Row],[Por.]]=1,20,IF(Výsledky_MUŽI[[#This Row],[Por.]]=2,17,IF(Výsledky_MUŽI[[#This Row],[Por.]]=3,15,IF(Výsledky_MUŽI[[#This Row],[Por.]]=4,13,IF(Výsledky_MUŽI[[#This Row],[Por.]]=5,11,IF(Výsledky_MUŽI[[#This Row],[Por.]]=6,9,IF(Výsledky_MUŽI[[#This Row],[Por.]]=7,8,IF(Výsledky_MUŽI[[#This Row],[Por.]]=8,7,IF(Výsledky_MUŽI[[#This Row],[Por.]]=9,6,IF(Výsledky_MUŽI[[#This Row],[Por.]]=10,5,IF(Výsledky_MUŽI[[#This Row],[Por.]]=11,4,IF(Výsledky_MUŽI[[#This Row],[Por.]]=12,3,IF(Výsledky_MUŽI[[#This Row],[Výs. čas]]=99.99,1,IF(Výsledky_MUŽI[[#This Row],[Výs. čas]]=\"Diskv.\",1,IF(Výsledky_MUŽI[[#This Row],[Výs. čas]]=\"Neúčasť\",0,2)))))))))))))))","v":2}]
[{"$f":"IF(Výsledky_MUŽI[[#This Row],[Výs. čas]]=\"čas\",\"---\",IF(Výsledky_MUŽI[[#This Row],[Výs. čas]]=99.99,\"---\",IF(Výsledky_MUŽI[[#This Row],[Výs. čas]]=\"Diskv.\",\"---\",IF(Výsledky_MUŽI[[#This Row],[Výs. čas]]=\"Neúčasť\",\"---\",_xlfn.RANK.EQ(Výsledky_MUŽI[[#This Row],[Výs. čas]],Výsledky_MUŽI[Výs. čas],1)))))","v":"---"},null,null,null,null,{"$f":"IF(AND(ISBLANK(Výsledky_MUŽI[[#This Row],[PP]])),\"čas\",IF(Výsledky_MUŽI[[#This Row],[ĽP]]=\"D\",\"Diskv.\",IF(Výsledky_MUŽI[[#This Row],[PP]]=\"D\",\"Diskv.\",IF(Výsledky_MUŽI[[#This Row],[ĽP]]=\"n\",\"Neúčasť\",IF(Výsledky_MUŽI[[#This Row],[PP]]=\"n\",\"Neúčasť\",MAX(SUBSTITUTE(Výsledky_MUŽI[[#This Row],[ĽP]],\",\",\".\"),SUBSTITUTE(Výsledky_MUŽI[[#This Row],[PP]],\",\",\".\")))))))","v":"čas"},{"$f":"IF(Výsledky_MUŽI[[#This Row],[Por.]]=1,20,IF(Výsledky_MUŽI[[#This Row],[Por.]]=2,17,IF(Výsledky_MUŽI[[#This Row],[Por.]]=3,15,IF(Výsledky_MUŽI[[#This Row],[Por.]]=4,13,IF(Výsledky_MUŽI[[#This Row],[Por.]]=5,11,IF(Výsledky_MUŽI[[#This Row],[Por.]]=6,9,IF(Výsledky_MUŽI[[#This Row],[Por.]]=7,8,IF(Výsledky_MUŽI[[#This Row],[Por.]]=8,7,IF(Výsledky_MUŽI[[#This Row],[Por.]]=9,6,IF(Výsledky_MUŽI[[#This Row],[Por.]]=10,5,IF(Výsledky_MUŽI[[#This Row],[Por.]]=11,4,IF(Výsledky_MUŽI[[#This Row],[Por.]]=12,3,IF(Výsledky_MUŽI[[#This Row],[Výs. čas]]=99.99,1,IF(Výsledky_MUŽI[[#This Row],[Výs. čas]]=\"Diskv.\",1,IF(Výsledky_MUŽI[[#This Row],[Výs. čas]]=\"Neúčasť\",0,2)))))))))))))))","v":2}]
[null,null,null,null,null,null,"Prestupov:",{"$f":"COUNTIF(Výsledky_MUŽI[Prestup],\"X\")","v":7}]

{"sheet":"Výsledky ŽENY","index":2,"n_rows":22,"n_cols":13,"rows_kept":22,"cut":false,"hidden":false,"merged":[[0,0,0,7],[0,12,1,12],[1,0,1,7],[21,12,22,12]]}
[{"$f":"'Vstupné údaje'!$B$4","v":"Memoriál baróna Friesenhofa"},null,null,null,null,null,null,null,null,null,null,null,"Návod na plnohodnotnú prácu s výsledkami"]
[{"$f":"CONCATENATE(\"Výsledky \",'Vstupné údaje'!$B$7,\". kola SMHL \",TEXT('Vstupné údaje'!$B$5,\"yyyy\"),\" v kategórii ŽENY, ktoré sa konalo \",TEXT('Vstupné údaje'!$B$5,\"dd.mm.yyyy\"),\" o \",TEXT('Vstupné údaje'!$B$6,\"hh:mm\"))","v":"Výsledky 1. kola SMHL 2025 v kategórii ŽENY, ktoré sa konalo 07.06.2025 o 14:00"}]
[]
["Por.","Družstvo","Okres","ĽP","PP","Výs. čas","Body","Prestup",null,null,null,null,"Pri zadávaní výsledkov sa vypĺňajú nasledujúce stĺpce (zvyšné sa vypočítajú automaticky):"]
[{"$f":"IF(Výsledky_ŽENY[[#This Row],[Výs. čas]]=\"čas\",\"---\",IF(Výsledky_ŽENY[[#This Row],[Výs. čas]]=99.99,\"---\",IF(Výsledky_ŽENY[[#This Row],[Výs. čas]]=\"Diskv.\",\"---\",IF(Výsledky_ŽENY[[#This Row],[Výs. čas]]=\"Neúčasť\",\"---\",_xlfn.RANK.EQ(Výsledky_ŽENY[[#This Row],[Výs. čas]],Výsledky_ŽENY[Výs. čas],1)))))","v":7},"Horná Ves",null,20.100000000000001,21.27,21.27,{"$f":"IF(Výsledky_ŽENY[[#This Row],[Por.]]=1,10,IF(Výsledky_ŽENY[[#This Row],[Por.]]=2,8,IF(Výsledky_ŽENY[[#This Row],[Por.]]=3,6,IF(Výsledky_ŽENY[[#This Row],[Por.]]=4,4,IF(Výsledky_ŽENY[[#This Row],[Por.]]=5,2,IF(Výsledky_ŽENY[[#This Row],[Výs. čas]]=99.99,1,IF(Výsledky_ŽENY[[#This Row],[Výs. čas]]=\"Diskv.\",1,IF(Výsledky_ŽENY[[#This Row],[Výs. čas]]=\"Neúčasť\",0,2))))))))","v":2},null,null,null,null,null,"--- družstvo"]
[{"$f":"IF(Výsledky_ŽENY[[#This Row],[Výs. čas]]=\"čas\",\"---\",IF(Výsledky_ŽENY[[#This Row],[Výs. čas]]=99.99,\"---\",IF(Výsledky_ŽENY[[#This Row],[Výs. čas]]=\"Diskv.\",\"---\",IF(Výsledky_ŽENY[[#This Row],[Výs. čas]]=\"Neúčasť\",\"---\",_xlfn.RANK.EQ(Výsledky_ŽENY[[#This Row],[Výs. čas]],Výsledky_ŽENY[Výs. čas],1)))))","v":5},"Krásno",null,20.81,20.34,20.81,{"$f":"IF(Výsledky_ŽENY[[#This Row],[Por.]]=1,10,IF(Výsledky_ŽENY[[#This Row],[Por.]]=2,8,IF(Výsledky_ŽENY[[#This Row],[Por.]]=3,6,IF(Výsledky_ŽENY[[#This Row],[Por.]]=4,4,IF(Výsledky_ŽENY[[#This Row],[Por.]]=5,2,IF(Výsledky_ŽENY[[#This Row],[Výs. čas]]=99.99,1,IF(Výsledky_ŽENY[[#This Row],[Výs. čas]]=\"Diskv.\",1,IF(Výsledky_ŽENY[[#This Row],[Výs. čas]]=\"Neúčasť\",0,2))))))))","v":2},null,null,null,null,null,"--- okres"]
[{"$f":"IF(Výsledky_ŽENY[[#This Row],[Výs. čas]]=\"čas\",\"---\",IF(Výsledky_ŽENY[[#This Row],[Výs. čas]]=99.99,\"---\",IF(Výsledky_ŽENY[[#This Row],[Výs. čas]]=\"Diskv.\",\"---\",IF(Výsledky_ŽENY[[#This Row],[Výs. čas]]=\"Neúčasť\",\"---\",_xlfn.RANK.EQ(Výsledky_ŽENY[[#This Row],[Výs. čas]],Výsledky_ŽENY[Výs. čas],1)))))","v":4},"Dulov \"B\"",null,19.899999999999999,19.16,19.899999999999999,{"$f":"IF(Výsledky_ŽENY[[#This Row],[Por.]]=1,10,IF(Výsledky_ŽENY[[#This Row],[Por.]]=2,8,IF(Výsledky_ŽENY[[#This Row],[Por.]]=3,6,IF(Výsledky_ŽENY[[#This Row],[Por.]]=4,4,IF(Výsledky_ŽENY[[#This Row],[Por.]]=5,2,IF(Výsledky_ŽENY[[#This Row],[Výs. čas]]=99.99,1,IF(Výsledky_ŽENY[[#This Row],[Výs. čas]]=\"Diskv.\",1,IF(Výsledky_ŽENY[[#This Row],[Výs. čas]]=\"Neúčasť\",0,2))))))))","v":4},null,null,null,null,null,"--- ľavý prúd (ĽP)"]
[{"$f":"IF(Výsledky_ŽENY[[#This Row],[Výs. čas]]=\"čas\",\"---\",IF(Výsledky_ŽENY[[#This Row],[Výs. čas]]=99.99,\"---\",IF(Výsledky_ŽENY[[#This Row],[Výs. čas]]=\"Diskv.\",\"---\",IF(Výsledky_ŽENY[[#This Row],[Výs. čas]]=\"Neúčasť\",\"---\",_xlfn.RANK.EQ(Výsledky_ŽENY[[#This Row],[Výs. čas]],Výsledky_ŽENY[Výs. čas],1)))))","v":1},"Poruba",null,18.68,18.670000000000002,18.68,{"$f":"IF(Výsledky_ŽENY[[#This Row],[Por.]]=1,10,IF(Výsledky_ŽENY[[#This Row],[Por.]]=2,8,IF(Výsledky_ŽENY[[#This Row],[Por.]]=3,6,IF(Výsledky_ŽENY[[#This Row],[Por.]]=4,4,IF(Výsledky_ŽENY[[#This Row],[Por.]]=5,2,IF(Výsledky_ŽENY[[#This Row],[Výs. čas]]=99.99,1,IF(Výsledky_ŽENY[[#This Row],[Výs. čas]]=\"Diskv.\",1,IF(Výsledky_ŽENY[[#This Row],[Výs. čas]]=\"Neúčasť\",0,2))))))))","v":10},"x",null,null,null,null,"--- pravý prúd (PP)"]
[{"$f":"IF(Výsledky_ŽENY[[#This Row],[Výs. čas]]=\"čas\",\"---\",IF(Výsledky_ŽENY[[#This Row],[Výs. čas]]=99.99,\"---\",IF(Výsledky_ŽENY[[#This Row],[Výs. čas]]=\"Diskv.\",\"---\",IF(Výsledky_ŽENY[[#This Row],[Výs. čas]]=\"Neúčasť\",\"---\",_xlfn.RANK.EQ(Výsledky_ŽENY[[#This Row],[Výs. čas]],Výsledky_ŽENY[Výs. čas],1)))))","v":3},"Kocurany",null,19.47,18.3,19.47,{"$f":"IF(Výsledky_ŽENY[[#This Row],[Por.]]=1,10,IF(Výsledky_ŽENY[[#This Row],[Por.]]=2,8,IF(Výsledky_ŽENY[[#This Row],[Por.]]=3,6,IF(Výsledky_ŽENY[[#This Row],[Por.]]=4,4,IF(Výsledky_ŽENY[[#This Row],[Por.]]=5,2,IF(Výsledky_ŽENY[[#This Row],[Výs. čas]]=99.99,1,IF(Výsledky_ŽENY[[#This Row],[Výs. čas]]=\"Diskv.\",1,IF(Výsledky_ŽENY[[#This Row],[Výs. čas]]=\"Neúčasť\",0,2))))))))","v":6},"x",null,null,null,null,"--- prestup"]
[{"$f":"IF(Výsledky_ŽENY[[#This Row],[Výs. čas]]=\"čas\",\"---\",IF(Výsledky_ŽENY[[#This Row],[Výs. čas]]=99.99,\"---\",IF(Výsledky_ŽENY[[#This Row],[Výs. čas]]=\"Diskv.\",\"---\",IF(Výsledky_ŽENY[[#This Row],[Výs. čas]]=\"Neúčasť\",\"---\",_xlfn.RANK.EQ(Výsledky_ŽENY[[#This Row],[Výs. čas]],Výsledky_ŽENY[Výs. čas],1)))))","v":6},"Nedašova Lhota",null,20.2,21.19,21.19,{"$f":"IF(Výsledky_ŽENY[[#This Row],[Por.]]=1,10,IF(Výsledky_ŽENY[[#This Row],[Por.]]=2,8,IF(Výsledky_ŽENY[[#This Row],[Por.]]=3,6,IF(Výsledky_ŽENY[[#This Row],[Por.]]=4,4,IF(Výsledky_ŽENY[[#This Row],[Por.]]=5,2,IF(Výsledky_ŽENY[[#This Row],[Výs. čas]]=99.99,1,IF(Výsledky_ŽENY[[#This Row],[Výs. čas]]=\"Diskv.\",1,IF(Výsledky_ŽENY[[#This Row],[Výs. čas]]=\"Neúčasť\",0,2))))))))","v":2}]
[{"$f":"IF(Výsledky_ŽENY[[#This Row],[Výs. čas]]=\"čas\",\"---\",IF(Výsledky_ŽENY[[#This Row],[Výs. čas]]=99.99,\"---\",IF(Výsledky_ŽENY[[#This Row],[Výs. čas]]=\"Diskv.\",\"---\",IF(Výsledky_ŽENY[[#This Row],[Výs. čas]]=\"Neúčasť\",\"---\",_xlfn.RANK.EQ(Výsledky_ŽENY[[#This Row],[Výs. čas]],Výsledky_ŽENY[Výs. čas],1)))))","v":2},"Nosice Žabky \"B\"",null,19.13,18.510000000000002,19.13,{"$f":"IF(Výsledky_ŽENY[[#This Row],[Por.]]=1,10,IF(Výsledky_ŽENY[[#This Row],[Por.]]=2,8,IF(Výsledky_ŽENY[[#This Row],[Por.]]=3,6,IF(Výsledky_ŽENY[[#This Row],[Por.]]=4,4,IF(Výsledky_ŽENY[[#This Row],[Por.]]=5,2,IF(Výsledky_ŽENY[[#This Row],[Výs. čas]]=99.99,1,IF(Výsledky_ŽENY[[#This Row],[Výs. čas]]=\"Diskv.\",1,IF(Výsledky_ŽENY[[#This Row],[Výs. čas]]=\"Neúčasť\",0,2))))))))","v":8},null,null,null,null,null,"Dovolený formát zadávaných údajov:"]
[{"$f":"IF(Výsledky_ŽENY[[#This Row],[Výs. čas]]=\"čas\",\"---\",IF(Výsledky_ŽENY[[#This Row],[Výs. čas]]=99.99,\"---\",IF(Výsledky_ŽENY[[#This Row],[Výs. čas]]=\"Diskv.\",\"---\",IF(Výsledky_ŽENY[[#This Row],[Výs. čas]]=\"Neúčasť\",\"---\",_xlfn.RANK.EQ(Výsledky_ŽENY[[#This Row],[Výs. čas]],Výsledky_ŽENY[Výs. čas],1)))))","v":"---"},null,null,null,null,{"$f":"IF(AND(ISBLANK(Výsledky_ŽENY[[#This Row],[PP]])),\"čas\",IF(Výsledky_ŽENY[[#This Row],[ĽP]]=\"D\",\"Diskv.\",IF(Výsledky_ŽENY[[#This Row],[PP]]=\"D\",\"Diskv.\",IF(Výsledky_ŽENY[[#This Row],[ĽP]]=\"n\",\"Neúčasť\",IF(Výsledky_ŽENY[[#This Row],[PP]]=\"n\",\"Neúčasť\",MAX(SUBSTITUTE(Výsledky_ŽENY[[#This Row],[ĽP]],\",\",\".\"),SUBSTITUTE(Výsledky_ŽENY[[#This Row],[PP]],\",\",\".\")))))))","v":"čas"},{"$f":"IF(Výsledky_ŽENY[[#This Row],[Por.]]=1,10,IF(Výsledky_ŽENY[[#This Row],[Por.]]=2,8,IF(Výsledky_ŽENY[[#This Row],[Por.]]=3,6,IF(Výsledky_ŽENY[[#This Row],[Por.]]=4,4,IF(Výsledky_ŽENY[[#This Row],[Por.]]=5,2,IF(Výsledky_ŽENY[[#This Row],[Výs. čas]]=99.99,1,IF(Výsledky_ŽENY[[#This Row],[Výs. čas]]=\"Diskv.\",1,IF(Výsledky_ŽENY[[#This Row],[Výs. čas]]=\"Neúčasť\",0,2))))))))","v":2},null,null,null,null,null,"Družstvo, okres"]
[{"$f":"IF(Výsledky_ŽENY[[#This Row],[Výs. čas]]=\"čas\",\"---\",IF(Výsledky_ŽENY[[#This Row],[Výs. čas]]=99.99,\"---\",IF(Výsledky_ŽENY[[#This Row],[Výs. čas]]=\"Diskv.\",\"---\",IF(Výsledky_ŽENY[[#This Row],[Výs. čas]]=\"Neúčasť\",\"---\",_xlfn.RANK.EQ(Výsledky_ŽENY[[#This Row],[Výs. čas]],Výsledky_ŽENY[Výs. čas],1)))))","v":"---"},null,null,null,null,{"$f":"IF(AND(ISBLANK(Výsledky_ŽENY[[#This Row],[PP]])),\"čas\",IF(Výsledky_ŽENY[[#This Row],[ĽP]]=\"D\",\"Diskv.\",IF(Výsledky_ŽENY[[#This Row],[PP]]=\"D\",\"Diskv.\",IF(Výsledky_ŽENY[[#This Row],[ĽP]]=\"n\",\"Neúčasť\",IF(Výsledky_ŽENY[[#This Row],[PP]]=\"n\",\"Neúčasť\",MAX(SUBSTITUTE(Výsledky_ŽENY[[#This Row],[ĽP]],\",\",\".\"),SUBSTITUTE(Výsledky_ŽENY[[#This Row],[PP]],\",\",\".\")))))))","v":"čas"},{"$f":"IF(Výsledky_ŽENY[[#This Row],[Por.]]=1,10,IF(Výsledky_ŽENY[[#This Row],[Por.]]=2,8,IF(Výsledky_ŽENY[[#This Row],[Por.]]=3,6,IF(Výsledky_ŽENY[[#This Row],[Por.]]=4,4,IF(Výsledky_ŽENY[[#This Row],[Por.]]=5,2,IF(Výsledky_ŽENY[[#This Row],[Výs. čas]]=99.99,1,IF(Výsledky_ŽENY[[#This Row],[Výs. čas]]=\"Diskv.\",1,IF(Výsledky_ŽENY[[#This Row],[Výs. čas]]=\"Neúčasť\",0,2))))))))","v":2},null,null,null,null,null,"--- ľubovoľný text"]
[{"$f":"IF(Výsledky_ŽENY[[#This Row],[Výs. čas]]=\"čas\",\"---\",IF(Výsledky_ŽENY[[#This Row],[Výs. čas]]=99.99,\"---\",IF(Výsledky_ŽENY[[#This Row],[Výs. čas]]=\"Diskv.\",\"---\",IF(Výsledky_ŽENY[[#This Row],[Výs. čas]]=\"Neúčasť\",\"---\",_xlfn.RANK.EQ(Výsledky_ŽENY[[#This Row],[Výs. čas]],Výsledky_ŽENY[Výs. čas],1)))))","v":"---"},null,null,null,null,{"$f":"IF(AND(ISBLANK(Výsledky_ŽENY[[#This Row],[PP]])),\"čas\",IF(Výsledky_ŽENY[[#This Row],[ĽP]]=\"D\",\"Diskv.\",IF(Výsledky_ŽENY[[#This Row],[PP]]=\"D\",\"Diskv.\",IF(Výsledky_ŽENY[[#This Row],[ĽP]]=\"n\",\"Neúčasť\",IF(Výsledky_ŽENY[[#This Row],[PP]]=\"n\",\"Neúčasť\",MAX(SUBSTITUTE(Výsledky_ŽENY[[#This Row],[ĽP]],\",\",\".\"),SUBSTITUTE(Výsledky_ŽENY[[#This Row],[PP]],\",\",\".\")))))))","v":"čas"},{"$f":"IF(Výsledky_ŽENY[[#This Row],[Por.]]=1,10,IF(Výsledky_ŽENY[[#This Row],[Por.]]=2,8,IF(Výsledky_ŽENY[[#This Row],[Por.]]=3,6,IF(Výsledky_ŽENY[[#This Row],[Por.]]=4,4,IF(Výsledky_ŽENY[[#This Row],[Por.]]=5,2,IF(Výsledky_ŽENY[[#This Row],[Výs. čas]]=99.99,1,IF(Výsledky_ŽENY[[#This Row],[Výs. čas]]=\"Diskv.\",1,IF(Výsledky_ŽENY[[#This Row],[Výs. čas]]=\"Neúčasť\",0,2))))))))","v":2},null,null,null,null,null,"Ľavý/pravý prúd"]
[null,null,null,null,null,null,"Prestupov:",{"$f":"COUNTIF(Výsledky_ŽENY[Prestup],\"X\")","v":2},null,null,null,null,"14.00 --- dokončený pokus"]
[null,null,null,null,null,null,null,null,null,null,null,null,"99.99 --- nedokončený pokus"]
[null,null,null,null,null,null,null,null,null,null,null,null,"D        --- diskvalifikácia družstva"]
[null,null,null,null,null,null,null,null,null,null,null,null,"N        --- neúčasť družstva"]
[null,null,null,null,null,null,null,null,null,null,null,null,"Prestup"]
[null,null,null,null,null,null,null,null,null,null,null,null,"X        --- ak malo družstvo prestup"]
[]
[null,null,null,null,null,null,null,null,null,null,null,null,"TIP: Ak potrebujete do tabuľky pridať nový riadok, presuňte sa do stĺpca \"H\" posledného riadku a stačte klávesu TAB."]

{"sheet":"Výsledky MUŽI nad 35 rokov","index":3,"n_rows":22,"n_cols":13,"rows_kept":22,"cut":false,"hidden":false,"merged":[[0,0,0,7],[0,12,1,12],[1,0,1,7],[21,12,22,12]]}
[{"$f":"'Vstupné údaje'!$B$4","v":"Memoriál baróna Friesenhofa"},null,null,null,null,null,null,null,null,null,null,null,"Návod na plnohodnotnú prácu s výsledkami"]
[{"$f":"CONCATENATE(\"Výsledky \",'Vstupné údaje'!$B$7,\". kola SMHL \",TEXT('Vstupné údaje'!$B$5,\"yyyy\"),\" v kategórii MUŽI nad 35 rokov, ktoré sa konalo \",TEXT('Vstupné údaje'!$B$5,\"dd.mm.yyyy\"),\" o \",TEXT('Vstupné údaje'!$B$6,\"hh:mm\"))","v":"Výsledky 1. kola SMHL 2025 v kategórii MUŽI nad 35 rokov, ktoré sa konalo 07.06.2025 o 14:00"}]
[]
["Por.","Družstvo","Okres","ĽP","PP","Výs. čas","Body","Prestup",null,null,null,null,"Pri zadávaní výsledkov sa vypĺňajú nasledujúce stĺpce (zvyšné sa vypočítajú automaticky):"]
[{"$f":"IF(Výsledky_ŽENY9[[#This Row],[Výs. čas]]=\"čas\",\"---\",IF(Výsledky_ŽENY9[[#This Row],[Výs. čas]]=99.99,\"---\",IF(Výsledky_ŽENY9[[#This Row],[Výs. čas]]=\"Diskv.\",\"---\",IF(Výsledky_ŽENY9[[#This Row],[Výs. čas]]=\"Neúčasť\",\"---\",_xlfn.RANK.EQ(Výsledky_ŽENY9[[#This Row],[Výs. čas]],Výsledky_ŽENY9[Výs. čas],1)))))","v":1},"Ihrište",null,15.9,15.15,15.9,{"$f":"IF(Výsledky_ŽENY9[[#This Row],[Por.]]=1,10,IF(Výsledky_ŽENY9[[#This Row],[Por.]]=2,8,IF(Výsledky_ŽENY9[[#This Row],[Por.]]=3,6,IF(Výsledky_ŽENY9[[#This Row],[Por.]]=4,4,IF(Výsledky_ŽENY9[[#This Row],[Por.]]=5,2,IF(Výsledky_ŽENY9[[#This Row],[Výs. čas]]=99.99,1,IF(Výsledky_ŽENY9[[#This Row],[Výs. čas]]=\"Diskv.\",1,IF(Výsledky_ŽENY9[[#This Row],[Výs. čas]]=\"Neúčasť\",0,2))))))))","v":10},null,null,null,null,null,"--- družstvo"]
[{"$f":"IF(Výsledky_ŽENY9[[#This Row],[Výs. čas]]=\"čas\",\"---\",IF(Výsledky_ŽENY9[[#This Row],[Výs. čas]]=99.99,\"---\",IF(Výsledky_ŽENY9[[#This Row],[Výs. čas]]=\"Diskv.\",\"---\",IF(Výsledky_ŽENY9[[#This Row],[Výs. čas]]=\"Neúčasť\",\"---\",_xlfn.RANK.EQ(Výsledky_ŽENY9[[#This Row],[Výs. čas]],Výsledky_ŽENY9[Výs. čas],1)))))","v":4},"Lehota pod Vtáčnikom",null,17.41,17.670000000000002,17.670000000000002,{"$f":"IF(Výsledky_ŽENY9[[#This Row],[Por.]]=1,10,IF(Výsledky_ŽENY9[[#This Row],[Por.]]=2,8,IF(Výsledky_ŽENY9[[#This Row],[Por.]]=3,6,IF(Výsledky_ŽENY9[[#This Row],[Por.]]=4,4,IF(Výsledky_ŽENY9[[#This Row],[Por.]]=5,2,IF(Výsledky_ŽENY9[[#This Row],[Výs. čas]]=99.99,1,IF(Výsledky_ŽENY9[[#This Row],[Výs. čas]]=\"Diskv.\",1,IF(Výsledky_ŽENY9[[#This Row],[Výs. čas]]=\"Neúčasť\",0,2))))))))","v":4},null,null,null,null,null,"--- okres"]
[{"$f":"IF(Výsledky_ŽENY9[[#This Row],[Výs. čas]]=\"čas\",\"---\",IF(Výsledky_ŽENY9[[#This Row],[Výs. čas]]=99.99,\"---\",IF(Výsledky_ŽENY9[[#This Row],[Výs. čas]]=\"Diskv.\",\"---\",IF(Výsledky_ŽENY9[[#This Row],[Výs. čas]]=\"Neúčasť\",\"---\",_xlfn.RANK.EQ(Výsledky_ŽENY9[[#This Row],[Výs. čas]],Výsledky_ŽENY9[Výs. čas],1)))))","v":2},"Lednické Rovne",null,16.11,15.17,16.11,{"$f":"IF(Výsledky_ŽENY9[[#This Row],[Por.]]=1,10,IF(Výsledky_ŽENY9[[#This Row],[Por.]]=2,8,IF(Výsledky_ŽENY9[[#This Row],[Por.]]=3,6,IF(Výsledky_ŽENY9[[#This Row],[Por.]]=4,4,IF(Výsledky_ŽENY9[[#This Row],[Por.]]=5,2,IF(Výsledky_ŽENY9[[#This Row],[Výs. čas]]=99.99,1,IF(Výsledky_ŽENY9[[#This Row],[Výs. čas]]=\"Diskv.\",1,IF(Výsledky_ŽENY9[[#This Row],[Výs. čas]]=\"Neúčasť\",0,2))))))))","v":8},"x",null,null,null,null,"--- ľavý prúd (ĽP)"]
[{"$f":"IF(Výsledky_ŽENY9[[#This Row],[Výs. čas]]=\"čas\",\"---\",IF(Výsledky_ŽENY9[[#This Row],[Výs. čas]]=99.99,\"---\",IF(Výsledky_ŽENY9[[#This Row],[Výs. čas]]=\"Diskv.\",\"---\",IF(Výsledky_ŽENY9[[#This Row],[Výs. čas]]=\"Neúčasť\",\"---\",_xlfn.RANK.EQ(Výsledky_ŽENY9[[#This Row],[Výs. čas]],Výsledky_ŽENY9[Výs. čas],1)))))","v":3},"Nosice",null,16.37,16.71,16.71,{"$f":"IF(Výsledky_ŽENY9[[#This Row],[Por.]]=1,10,IF(Výsledky_ŽENY9[[#This Row],[Por.]]=2,8,IF(Výsledky_ŽENY9[[#This Row],[Por.]]=3,6,IF(Výsledky_ŽENY9[[#This Row],[Por.]]=4,4,IF(Výsledky_ŽENY9[[#This Row],[Por.]]=5,2,IF(Výsledky_ŽENY9[[#This Row],[Výs. čas]]=99.99,1,IF(Výsledky_ŽENY9[[#This Row],[Výs. čas]]=\"Diskv.\",1,IF(Výsledky_ŽENY9[[#This Row],[Výs. čas]]=\"Neúčasť\",0,2))))))))","v":6},"x",null,null,null,null,"--- pravý prúd (PP)"]
[{"$f":"IF(Výsledky_ŽENY9[[#This Row],[Výs. čas]]=\"čas\",\"---\",IF(Výsledky_ŽENY9[[#This Row],[Výs. čas]]=99.99,\"---\",IF(Výsledky_ŽENY9[[#This Row],[Výs. čas]]=\"Diskv.\",\"---\",IF(Výsledky_ŽENY9[[#This Row],[Výs. čas]]=\"Neúčasť\",\"---\",_xlfn.RANK.EQ(Výsledky_ŽENY9[[#This Row],[Výs. čas]],Výsledky_ŽENY9[Výs. čas],1)))))","v":"---"},null,null,null,null,{"$f":"IF(AND(ISBLANK(Výsledky_ŽENY9[[#This Row],[PP]])),\"čas\",IF(Výsledky_ŽENY9[[#This Row],[ĽP]]=\"D\",\"Diskv.\",IF(Výsledky_ŽENY9[[#This Row],[PP]]=\"D\",\"Diskv.\",IF(Výsledky_ŽENY9[[#This Row],[ĽP]]=\"n\",\"Neúčasť\",IF(Výsledky_ŽENY9[[#This Row],[PP]]=\"n\",\"Neúčasť\",MAX(SUBSTITUTE(Výsledky_ŽENY9[[#This Row],[ĽP]],\",\",\".\"),SUBSTITUTE(Výsledky_ŽENY9[[#This Row],[PP]],\",\",\".\")))))))","v":"čas"},{"$f":"IF(Výsledky_ŽENY9[[#This Row],[Por.]]=1,10,IF(Výsledky_ŽENY9[[#This Row],[Por.]]=2,8,IF(Výsledky_ŽENY9[[#This Row],[Por.]]=3,6,IF(Výsledky_ŽENY9[[#This Row],[Por.]]=4,4,IF(Výsledky_ŽENY9[[#This Row],[Por.]]=5,2,IF(Výsledky_ŽENY9[[#This Row],[Výs. čas]]=99.99,1,IF(Výsledky_ŽENY9[[#This Row],[Výs. čas]]=\"Diskv.\",1,IF(Výsledky_ŽENY9[[#This Row],[Výs. čas]]=\"Neúčasť\",0,2))))))))","v":2},null,null,null,null,null,"--- prestup"]
[null,null,null,null,null,null,"Prestupov:",{"$f":"COUNTIF(Výsledky_ŽENY9[Prestup],\"X\")","v":2}]
[null,null,null,null,null,null,null,null,null,null,null,null,"Dovolený formát zadávaných údajov:"]
[null,null,null,null,null,null,null,null,null,null,null,null,"Družstvo, okres"]
[null,null,null,null,null,null,null,null,null,null,null,null,"--- ľubovoľný text"]
[null,null,null,null,null,null,null,null,null,null,null,null,"Ľavý/pravý prúd"]
[null,null,null,null,null,null,null,null,null,null,null,null,"14.00 --- dokončený pokus"]
[null,null,null,null,null,null,null,null,null,null,null,null,"99.99 --- nedokončený pokus"]
[null,null,null,null,null,null,null,null,null,null,null,null,"D        --- diskvalifikácia družstva"]
[null,null,null,null,null,null,null,null,null,null,null,null,"N        --- neúčasť družstva"]
[null,null,null,null,null,null,null,null,null,null,null,null,"Prestup"]
[null,null,null,null,null,null,null,null,null,null,null,null,"X        --- ak malo družstvo prestup"]
[]
[null,null,null,null,null,null,null,null,null,null,null,null,"TIP: Ak potrebujete do tabuľky pridať nový riadok, presuňte sa do stĺpca \"H\" posledného riadku a stačte klávesu TAB."]

{"sheet":"Výsledky DORASTENCI","index":4,"n_rows":22,"n_cols":13,"rows_kept":22,"cut":false,"hidden":false,"merged":[[0,0,0,7],[0,12,1,12],[1,0,1,7],[21,12,22,12]]}
[{"$f":"'Vstupné údaje'!$B$4","v":"Memoriál baróna Friesenhofa"},null,null,null,null,null,null,null,null,null,null,null,"Návod na plnohodnotnú prácu s výsledkami"]
[{"$f":"CONCATENATE(\"Výsledky \",'Vstupné údaje'!$B$7,\". kola SMHL \",TEXT('Vstupné údaje'!$B$5,\"yyyy\"),\" v kategórii DORASTENCI, ktoré sa konalo \",TEXT('Vstupné údaje'!$B$5,\"dd.mm.yyyy\"),\" o \",TEXT('Vstupné údaje'!$B$6,\"hh:mm\"))","v":"Výsledky 1. kola SMHL 2025 v kategórii DORASTENCI, ktoré sa konalo 07.06.2025 o 14:00"}]
[]
["Por.","Družstvo","Okres","ĽP","PP","Výs. čas","Body","Prestup",null,null,null,null,"Pri zadávaní výsledkov sa vypĺňajú nasledujúce stĺpce (zvyšné sa vypočítajú automaticky):"]
[{"$f":"IF(Výsledky_ŽENY93[[#This Row],[Výs. čas]]=\"čas\",\"---\",IF(Výsledky_ŽENY93[[#This Row],[Výs. čas]]=99.99,\"---\",IF(Výsledky_ŽENY93[[#This Row],[Výs. čas]]=\"Diskv.\",\"---\",IF(Výsledky_ŽENY93[[#This Row],[Výs. čas]]=\"Neúčasť\",\"---\",_xlfn.RANK.EQ(Výsledky_ŽENY93[[#This Row],[Výs. čas]],Výsledky_ŽENY93[Výs. čas],1)))))","v":3},"Horná Ves",null,17.59,16.59,17.59,{"$f":"IF(Výsledky_ŽENY93[[#This Row],[Por.]]=1,10,IF(Výsledky_ŽENY93[[#This Row],[Por.]]=2,8,IF(Výsledky_ŽENY93[[#This Row],[Por.]]=3,6,IF(Výsledky_ŽENY93[[#This Row],[Por.]]=4,4,IF(Výsledky_ŽENY93[[#This Row],[Por.]]=5,2,IF(Výsledky_ŽENY93[[#This Row],[Výs. čas]]=99.99,1,IF(Výsledky_ŽENY93[[#This Row],[Výs. čas]]=\"Diskv.\",1,IF(Výsledky_ŽENY93[[#This Row],[Výs. čas]]=\"Neúčasť\",0,2))))))))","v":6},"x",null,null,null,null,"--- družstvo"]
[{"$f":"IF(Výsledky_ŽENY93[[#This Row],[Výs. čas]]=\"čas\",\"---\",IF(Výsledky_ŽENY93[[#This Row],[Výs. čas]]=99.99,\"---\",IF(Výsledky_ŽENY93[[#This Row],[Výs. čas]]=\"Diskv.\",\"---\",IF(Výsledky_ŽENY93[[#This Row],[Výs. čas]]=\"Neúčasť\",\"---\",_xlfn.RANK.EQ(Výsledky_ŽENY93[[#This Row],[Výs. čas]],Výsledky_ŽENY93[Výs. čas],1)))))","v":2},"Zlatníky",null,17.260000000000002,16.77,17.260000000000002,{"$f":"IF(Výsledky_ŽENY93[[#This Row],[Por.]]=1,10,IF(Výsledky_ŽENY93[[#This Row],[Por.]]=2,8,IF(Výsledky_ŽENY93[[#This Row],[Por.]]=3,6,IF(Výsledky_ŽENY93[[#This Row],[Por.]]=4,4,IF(Výsledky_ŽENY93[[#This Row],[Por.]]=5,2,IF(Výsledky_ŽENY93[[#This Row],[Výs. čas]]=99.99,1,IF(Výsledky_ŽENY93[[#This Row],[Výs. čas]]=\"Diskv.\",1,IF(Výsledky_ŽENY93[[#This Row],[Výs. čas]]=\"Neúčasť\",0,2))))))))","v":8},null,null,null,null,null,"--- okres"]
[{"$f":"IF(Výsledky_ŽENY93[[#This Row],[Výs. čas]]=\"čas\",\"---\",IF(Výsledky_ŽENY93[[#This Row],[Výs. čas]]=99.99,\"---\",IF(Výsledky_ŽENY93[[#This Row],[Výs. čas]]=\"Diskv.\",\"---\",IF(Výsledky_ŽENY93[[#This Row],[Výs. čas]]=\"Neúčasť\",\"---\",_xlfn.RANK.EQ(Výsledky_ŽENY93[[#This Row],[Výs. čas]],Výsledky_ŽENY93[Výs. čas],1)))))","v":1},"Horenická Hôrka",null,16.3,17.079999999999998,17.079999999999998,{"$f":"IF(Výsledky_ŽENY93[[#This Row],[Por.]]=1,10,IF(Výsledky_ŽENY93[[#This Row],[Por.]]=2,8,IF(Výsledky_ŽENY93[[#This Row],[Por.]]=3,6,IF(Výsledky_ŽENY93[[#This Row],[Por.]]=4,4,IF(Výsledky_ŽENY93[[#This Row],[Por.]]=5,2,IF(Výsledky_ŽENY93[[#This Row],[Výs. čas]]=99.99,1,IF(Výsledky_ŽENY93[[#This Row],[Výs. čas]]=\"Diskv.\",1,IF(Výsledky_ŽENY93[[#This Row],[Výs. čas]]=\"Neúčasť\",0,2))))))))","v":10},null,null,null,null,null,"--- ľavý prúd (ĽP)"]
[{"$f":"IF(Výsledky_ŽENY93[[#This Row],[Výs. čas]]=\"čas\",\"---\",IF(Výsledky_ŽENY93[[#This Row],[Výs. čas]]=99.99,\"---\",IF(Výsledky_ŽENY93[[#This Row],[Výs. čas]]=\"Diskv.\",\"---\",IF(Výsledky_ŽENY93[[#This Row],[Výs. čas]]=\"Neúčasť\",\"---\",_xlfn.RANK.EQ(Výsledky_ŽENY93[[#This Row],[Výs. čas]],Výsledky_ŽENY93[Výs. čas],1)))))","v":"---"},null,null,null,null,{"$f":"IF(AND(ISBLANK(Výsledky_ŽENY93[[#This Row],[PP]])),\"čas\",IF(Výsledky_ŽENY93[[#This Row],[ĽP]]=\"D\",\"Diskv.\",IF(Výsledky_ŽENY93[[#This Row],[PP]]=\"D\",\"Diskv.\",IF(Výsledky_ŽENY93[[#This Row],[ĽP]]=\"n\",\"Neúčasť\",IF(Výsledky_ŽENY93[[#This Row],[PP]]=\"n\",\"Neúčasť\",MAX(SUBSTITUTE(Výsledky_ŽENY93[[#This Row],[ĽP]],\",\",\".\"),SUBSTITUTE(Výsledky_ŽENY93[[#This Row],[PP]],\",\",\".\")))))))","v":"čas"},{"$f":"IF(Výsledky_ŽENY93[[#This Row],[Por.]]=1,10,IF(Výsledky_ŽENY93[[#This Row],[Por.]]=2,8,IF(Výsledky_ŽENY93[[#This Row],[Por.]]=3,6,IF(Výsledky_ŽENY93[[#This Row],[Por.]]=4,4,IF(Výsledky_ŽENY93[[#This Row],[Por.]]=5,2,IF(Výsledky_ŽENY93[[#This Row],[Výs. čas]]=99.99,1,IF(Výsledky_ŽENY93[[#This Row],[Výs. čas]]=\"Diskv.\",1,IF(Výsledky_ŽENY93[[#This Row],[Výs. čas]]=\"Neúčasť\",0,2))))))))","v":2},null,null,null,null,null,"--- pravý prúd (PP)"]
[{"$f":"IF(Výsledky_ŽENY93[[#This Row],[Výs. čas]]=\"čas\",\"---\",IF(Výsledky_ŽENY93[[#This Row],[Výs. čas]]=99.99,\"---\",IF(Výsledky_ŽENY93[[#This Row],[Výs. čas]]=\"Diskv.\",\"---\",IF(Výsledky_ŽENY93[[#This Row],[Výs. čas]]=\"Neúčasť\",\"---\",_xlfn.RANK.EQ(Výsledky_ŽENY93[[#This Row],[Výs. čas]],Výsledky_ŽENY93[Výs. čas],1)))))","v":"---"},null,null,null,null,{"$f":"IF(AND(ISBLANK(Výsledky_ŽENY93[[#This Row],[PP]])),\"čas\",IF(Výsledky_ŽENY93[[#This Row],[ĽP]]=\"D\",\"Diskv.\",IF(Výsledky_ŽENY93[[#This Row],[PP]]=\"D\",\"Diskv.\",IF(Výsledky_ŽENY93[[#This Row],[ĽP]]=\"n\",\"Neúčasť\",IF(Výsledky_ŽENY93[[#This Row],[PP]]=\"n\",\"Neúčasť\",MAX(SUBSTITUTE(Výsledky_ŽENY93[[#This Row],[ĽP]],\",\",\".\"),SUBSTITUTE(Výsledky_ŽENY93[[#This Row],[PP]],\",\",\".\")))))))","v":"čas"},{"$f":"IF(Výsledky_ŽENY93[[#This Row],[Por.]]=1,10,IF(Výsledky_ŽENY93[[#This Row],[Por.]]=2,8,IF(Výsledky_ŽENY93[[#This Row],[Por.]]=3,6,IF(Výsledky_ŽENY93[[#This Row],[Por.]]=4,4,IF(Výsledky_ŽENY93[[#This Row],[Por.]]=5,2,IF(Výsledky_ŽENY93[[#This Row],[Výs. čas]]=99.99,1,IF(Výsledky_ŽENY93[[#This Row],[Výs. čas]]=\"Diskv.\",1,IF(Výsledky_ŽENY93[[#This Row],[Výs. čas]]=\"Neúčasť\",0,2))))))))","v":2},null,null,null,null,null,"--- prestup"]
[null,null,null,null,null,null,"Prestupov:",{"$f":"COUNTIF(Výsledky_ŽENY93[Prestup],\"X\")","v":1}]
[null,null,null,null,null,null,null,null,null,null,null,null,"Dovolený formát zadávaných údajov:"]
[null,null,null,null,null,null,null,null,null,null,null,null,"Družstvo, okres"]
[null,null,null,null,null,null,null,null,null,null,null,null,"--- ľubovoľný text"]
[null,null,null,null,null,null,null,null,null,null,null,null,"Ľavý/pravý prúd"]
[null,null,null,null,null,null,null,null,null,null,null,null,"14.00 --- dokončený pokus"]
[null,null,null,null,null,null,null,null,null,null,null,null,"99.99 --- nedokončený pokus"]
[null,null,null,null,null,null,null,null,null,null,null,null,"D        --- diskvalifikácia družstva"]
[null,null,null,null,null,null,null,null,null,null,null,null,"N        --- neúčasť družstva"]
[null,null,null,null,null,null,null,null,null,null,null,null,"Prestup"]
[null,null,null,null,null,null,null,null,null,null,null,null,"X        --- ak malo družstvo prestup"]
[]
[null,null,null,null,null,null,null,null,null,null,null,null,"TIP: Ak potrebujete do tabuľky pridať nový riadok, presuňte sa do stĺpca \"H\" posledného riadku a stačte klávesu TAB."]

{"sheet":"Výsledky DORASTENKY","index":5,"n_rows":22,"n_cols":13,"rows_kept":22,"cut":false,"hidden":false,"merged":[[0,0,0,7],[0,12,1,12],[1,0,1,7],[21,12,22,12]]}
[{"$f":"'Vstupné údaje'!$B$4","v":"Memoriál baróna Friesenhofa"},null,null,null,null,null,null,null,null,null,null,null,"Návod na plnohodnotnú prácu s výsledkami"]
[{"$f":"CONCATENATE(\"Výsledky \",'Vstupné údaje'!$B$7,\". kola SMHL \",TEXT('Vstupné údaje'!$B$5,\"yyyy\"),\" v kategórii DORASTENKY, ktoré sa konalo \",TEXT('Vstupné údaje'!$B$5,\"dd.mm.yyyy\"),\" o \",TEXT('Vstupné údaje'!$B$6,\"hh:mm\"))","v":"Výsledky 1. kola SMHL 2025 v kategórii DORASTENKY, ktoré sa konalo 07.06.2025 o 14:00"}]
[]
["Por.","Družstvo","Okres","ĽP","PP","Výs. čas","Body","Prestup",null,null,null,null,"Pri zadávaní výsledkov sa vypĺňajú nasledujúce stĺpce (zvyšné sa vypočítajú automaticky):"]
[{"$f":"IF(Výsledky_ŽENY9315[[#This Row],[Výs. čas]]=\"čas\",\"---\",IF(Výsledky_ŽENY9315[[#This Row],[Výs. čas]]=99.99,\"---\",IF(Výsledky_ŽENY9315[[#This Row],[Výs. čas]]=\"Diskv.\",\"---\",IF(Výsledky_ŽENY9315[[#This Row],[Výs. čas]]=\"Neúčasť\",\"---\",_xlfn.RANK.EQ(Výsledky_ŽENY9315[[#This Row],[Výs. čas]],Výsledky_ŽENY9315[Výs. čas],1)))))","v":3},"Horenická Hôrka",null,19.02,19.43,19.43,{"$f":"IF(Výsledky_ŽENY9315[[#This Row],[Por.]]=1,10,IF(Výsledky_ŽENY9315[[#This Row],[Por.]]=2,8,IF(Výsledky_ŽENY9315[[#This Row],[Por.]]=3,6,IF(Výsledky_ŽENY9315[[#This Row],[Por.]]=4,4,IF(Výsledky_ŽENY9315[[#This Row],[Por.]]=5,2,IF(Výsledky_ŽENY9315[[#This Row],[Výs. čas]]=99.99,1,IF(Výsledky_ŽENY9315[[#This Row],[Výs. čas]]=\"Diskv.\",1,IF(Výsledky_ŽENY9315[[#This Row],[Výs. čas]]=\"Neúčasť\",0,2))))))))","v":6},null,null,null,null,null,"--- družstvo"]
[{"$f":"IF(Výsledky_ŽENY9315[[#This Row],[Výs. čas]]=\"čas\",\"---\",IF(Výsledky_ŽENY9315[[#This Row],[Výs. čas]]=99.99,\"---\",IF(Výsledky_ŽENY9315[[#This Row],[Výs. čas]]=\"Diskv.\",\"---\",IF(Výsledky_ŽENY9315[[#This Row],[Výs. čas]]=\"Neúčasť\",\"---\",_xlfn.RANK.EQ(Výsledky_ŽENY9315[[#This Row],[Výs. čas]],Výsledky_ŽENY9315[Výs. čas],1)))))","v":4},"Zlatníky",null,20.239999999999998,19.760000000000002,20.239999999999998,{"$f":"IF(Výsledky_ŽENY9315[[#This Row],[Por.]]=1,10,IF(Výsledky_ŽENY9315[[#This Row],[Por.]]=2,8,IF(Výsledky_ŽENY9315[[#This Row],[Por.]]=3,6,IF(Výsledky_ŽENY9315[[#This Row],[Por.]]=4,4,IF(Výsledky_ŽENY9315[[#This Row],[Por.]]=5,2,IF(Výsledky_ŽENY9315[[#This Row],[Výs. čas]]=99.99,1,IF(Výsledky_ŽENY9315[[#This Row],[Výs. čas]]=\"Diskv.\",1,IF(Výsledky_ŽENY9315[[#This Row],[Výs. čas]]=\"Neúčasť\",0,2))))))))","v":4},null,null,null,null,null,"--- okres"]
[{"$f":"IF(Výsledky_ŽENY9315[[#This Row],[Výs. čas]]=\"čas\",\"---\",IF(Výsledky_ŽENY9315[[#This Row],[Výs. čas]]=99.99,\"---\",IF(Výsledky_ŽENY9315[[#This Row],[Výs. čas]]=\"Diskv.\",\"---\",IF(Výsledky_ŽENY9315[[#This Row],[Výs. čas]]=\"Neúčasť\",\"---\",_xlfn.RANK.EQ(Výsledky_ŽENY9315[[#This Row],[Výs. čas]],Výsledky_ŽENY9315[Výs. čas],1)))))","v":2},"Rybany",null,18.41,19.39,19.39,{"$f":"IF(Výsledky_ŽENY9315[[#This Row],[Por.]]=1,10,IF(Výsledky_ŽENY9315[[#This Row],[Por.]]=2,8,IF(Výsledky_ŽENY9315[[#This Row],[Por.]]=3,6,IF(Výsledky_ŽENY9315[[#This Row],[Por.]]=4,4,IF(Výsledky_ŽENY9315[[#This Row],[Por.]]=5,2,IF(Výsledky_ŽENY9315[[#This Row],[Výs. čas]]=99.99,1,IF(Výsledky_ŽENY9315[[#This Row],[Výs. čas]]=\"Diskv.\",1,IF(Výsledky_ŽENY9315[[#This Row],[Výs. čas]]=\"Neúčasť\",0,2))))))))","v":8},"x",null,null,null,null,"--- ľavý prúd (ĽP)"]
[{"$f":"IF(Výsledky_ŽENY9315[[#This Row],[Výs. čas]]=\"čas\",\"---\",IF(Výsledky_ŽENY9315[[#This Row],[Výs. čas]]=99.99,\"---\",IF(Výsledky_ŽENY9315[[#This Row],[Výs. čas]]=\"Diskv.\",\"---\",IF(Výsledky_ŽENY9315[[#This Row],[Výs. čas]]=\"Neúčasť\",\"---\",_xlfn.RANK.EQ(Výsledky_ŽENY9315[[#This Row],[Výs. čas]],Výsledky_ŽENY9315[Výs. čas],1)))))","v":1},"Nosice",null,19.25,18.510000000000002,19.25,{"$f":"IF(Výsledky_ŽENY9315[[#This Row],[Por.]]=1,10,IF(Výsledky_ŽENY9315[[#This Row],[Por.]]=2,8,IF(Výsledky_ŽENY9315[[#This Row],[Por.]]=3,6,IF(Výsledky_ŽENY9315[[#This Row],[Por.]]=4,4,IF(Výsledky_ŽENY9315[[#This Row],[Por.]]=5,2,IF(Výsledky_ŽENY9315[[#This Row],[Výs. čas]]=99.99,1,IF(Výsledky_ŽENY9315[[#This Row],[Výs. čas]]=\"Diskv.\",1,IF(Výsledky_ŽENY9315[[#This Row],[Výs. čas]]=\"Neúčasť\",0,2))))))))","v":10},"x",null,null,null,null,"--- pravý prúd (PP)"]
[{"$f":"IF(Výsledky_ŽENY9315[[#This Row],[Výs. čas]]=\"čas\",\"---\",IF(Výsledky_ŽENY9315[[#This Row],[Výs. čas]]=99.99,\"---\",IF(Výsledky_ŽENY9315[[#This Row],[Výs. čas]]=\"Diskv.\",\"---\",IF(Výsledky_ŽENY9315[[#This Row],[Výs. čas]]=\"Neúčasť\",\"---\",_xlfn.RANK.EQ(Výsledky_ŽENY9315[[#This Row],[Výs. čas]],Výsledky_ŽENY9315[Výs. čas],1)))))","v":"---"},null,null,null,null,{"$f":"IF(AND(ISBLANK(Výsledky_ŽENY9315[[#This Row],[PP]])),\"čas\",IF(Výsledky_ŽENY9315[[#This Row],[ĽP]]=\"D\",\"Diskv.\",IF(Výsledky_ŽENY9315[[#This Row],[PP]]=\"D\",\"Diskv.\",IF(Výsledky_ŽENY9315[[#This Row],[ĽP]]=\"n\",\"Neúčasť\",IF(Výsledky_ŽENY9315[[#This Row],[PP]]=\"n\",\"Neúčasť\",MAX(SUBSTITUTE(Výsledky_ŽENY9315[[#This Row],[ĽP]],\",\",\".\"),SUBSTITUTE(Výsledky_ŽENY9315[[#This Row],[PP]],\",\",\".\")))))))","v":"čas"},{"$f":"IF(Výsledky_ŽENY9315[[#This Row],[Por.]]=1,10,IF(Výsledky_ŽENY9315[[#This Row],[Por.]]=2,8,IF(Výsledky_ŽENY9315[[#This Row],[Por.]]=3,6,IF(Výsledky_ŽENY9315[[#This Row],[Por.]]=4,4,IF(Výsledky_ŽENY9315[[#This Row],[Por.]]=5,2,IF(Výsledky_ŽENY9315[[#This Row],[Výs. čas]]=99.99,1,IF(Výsledky_ŽENY9315[[#This Row],[Výs. čas]]=\"Diskv.\",1,IF(Výsledky_ŽENY9315[[#This Row],[Výs. čas]]=\"Neúčasť\",0,2))))))))","v":2},null,null,null,null,null,"--- prestup"]
[null,null,null,null,null,null,"Prestupov:",{"$f":"COUNTIF(Výsledky_ŽENY9315[Prestup],\"X\")","v":2}]
[null,null,null,null,null,null,null,null,null,null,null,null,"Dovolený formát zadávaných údajov:"]
[null,null,null,null,null,null,null,null,null,null,null,null,"Družstvo, okres"]
[null,null,null,null,null,null,null,null,null,null,null,null,"--- ľubovoľný text"]
[null,null,null,null,null,null,null,null,null,null,null,null,"Ľavý/pravý prúd"]
[null,null,null,null,null,null,null,null,null,null,null,null,"14.00 --- dokončený pokus"]
[null,null,null,null,null,null,null,null,null,null,null,null,"99.99 --- nedokončený pokus"]
[null,null,null,null,null,null,null,null,null,null,null,null,"D        --- diskvalifikácia družstva"]
[null,null,null,null,null,null,null,null,null,null,null,null,"N        --- neúčasť družstva"]
[null,null,null,null,null,null,null,null,null,null,null,null,"Prestup"]
[null,null,null,null,null,null,null,null,null,null,null,null,"X        --- ak malo družstvo prestup"]
[]
[null,null,null,null,null,null,null,null,null,null,null,null,"TIP: Ak potrebujete do tabuľky pridať nový riadok, presuňte sa do stĺpca \"H\" posledného riadku a stačte klávesu TAB."]